Cogmind - Beta 16.1 @@@ ROGUE MODE // 2026.03.15 @ 17:56:44 Player: BlobtheGreat Result: Assimilated 0b10! Performance ------------- Evolutions (9) 4500 Regions Visited (40) 8000 Robots Destroyed (241) 1205 Value Destroyed (15405) 15405 Prototype IDs (41) 820 Alien Tech Used (0) 0 Bonus (26635) 26635 TOTAL SCORE: 56565 Bonus ------- High Alert Combat Kills 742 Follower Combat Kills 6999 Entered Garrisons 2600 Used RIF Installer 7500 Met MAIN.C 5000 Used 0b10 Conduit 2000 Win 3000 Friendly Fire -1206 Cogmind --------- Core Integrity 1082/1600 Matter 300/300 Energy 89/100 System Corruption 13% Temperature Cool (10) Movement Flying (22) Location 0b10 Command Parts ------- > --- POWER (1) -------- (None) > --- PROPULSION (6) --- Improved Diametric Drive Experimental Q-thruster > --- UTILITY (15) ----- Hacking Suite Hacking Suite System Shield System Shield Relay Coupler [NC] (9) Relay Coupler [C] (31) Relay Coupler [C] (43) Relay Coupler [C] (43) Relay Coupler [C] (43) Relay Coupler [Cutter] (30) Relay Coupler [Sentry] (5) Relay Coupler [Specialist] (29) > --- WEAPON (3) ------- Plasma Lance (fused) > --- INVENTORY (5) ---- Experimental Energy Well (332) Relay Coupler [Proto] (16) Relay Coupler [Proto] (16) Null Cannon Heavy Missile Launcher Peak State ------------ > --- POWER ------------ Light Antimatter Reactor > --- PROPULSION ------- Advanced Surge Thruster Field Propulsion Array Improved Diametric Drive Cooled Impulse Thruster Experimental Q-thruster > --- UTILITY ---------- Advanced Melee Analysis Suite Hacking Suite Hacking Suite System Shield System Shield Relay Coupler [NC] Relay Coupler [C] Relay Coupler [C] Relay Coupler [C] Relay Coupler [C] Relay Coupler [C] Relay Coupler [Cutter] Relay Coupler [Sentry] Relay Coupler [Sentry] Relay Coupler [Specialist] > --- WEAPON ----------- Null Cannon Advanced Remote Datajack Plasma Lance > --- INVENTORY -------- Experimental Energy Well Relay Coupler [Proto] Relay Coupler [Proto] Heavy Missile Launcher [Rating: 162] Favorites ----------- Power Enhanced Nuclear Core Engine Ion Engine Power Core Enhanced Nuclear Core Reactor Micro Antimatter Reactor Propulsion Light Treads Treads Light Treads Leg Aluminum Leg Hover Unit Aerolev Unit Flight Unit Cooled VTOL Module Utility Relay Coupler [C] Device Improved Heat Sink Storage Large Storage Unit Processor Transport Network Coupler Hackware Relay Coupler [C] Protection Layered Light Armor Plating Weapon Advanced Remote Datajack Energy Gun Cooled Pulse Rifle Energy Cannon Null Cannon Ballistic Gun High-powered Shotgun Ballistic Cannon Light Cannon Launcher Rocket Launcher Special Weapon Advanced Remote Datajack Impact Weapon Hammer Slashing Weapon Katana Piercing Weapon Enhanced Force Lance Special Melee Weapon Datajack Build | -11 -10 -10 -9 -9 -9 -8 -8 -8 -8 -7 -7 -7 -7 -7 -7 -6 -6 -6 -6 -6 -6 -5 -5 -5 -5 -5 -5 -4 -4 -4 -4 -4 -4 -3 -3 -3 -2 -2 -1 -1 ------- Run | Yrd Mat Min Mat Sto Gar Mat Gar Mat Gar Fac Was Fac Gar Fac Gar Fac Was Fac Gar Fac Gar Fac Was Fac Gar Fac Gar Fac Was Fac Gar Fac Gar Res Tes Gar Res Gar Acc Com Slots Evolved 18 | . . . 2 . . 2 . . . 2 . . . . . 2 . . . . . 2 . . . . . 2 . . . . . 2 . . 2 . 2 . Power . | . . . . . . . . . . . . . . . . . . . . . . . . . . . . . . . . . . . . . . . . . Propulsion 4 | . . . 1 . . 1 . . . 1 . . . . . . . . . . . . . . . . . 1 . . . . . . . . . . . . Utility 13 | . . . 1 . . 1 . . . 1 . . . . . 1 . . . . . 2 . . . . . 1 . . . . . 2 . . 2 . 2 . Weapon 1 | . . . . . . . . . . . . . . . . 1 . . . . . . . . . . . . . . . . . . . . . . . . Parts Attached 241 | 6 9 3 6 2 8 11 11 12 4 9 1 7 . 5 11 2 4 . 9 . 5 3 1 7 7 . 8 4 . 2 3 2 17 4 14 20 2 9 11 2 Power 18 | 1 1 . 1 . . 2 1 1 1 1 . 2 . . . . . . . . . 1 . 1 . . 1 . . . . . . . . 3 . . 1 . Engine 7 | 1 1 . 1 . . 2 . 1 . . . . . . . . . . . . . 1 . . . . . . . . . . . . . . . . . . Core 6 | . . . . . . . 1 . 1 1 . 2 . . . . . . . . . . . 1 . . . . . . . . . . . . . . . . Reactor 5 | . . . . . . . . . . . . . . . . . . . . . . . . . . . 1 . . . . . . . . 3 . . 1 . Propulsion 52 | 2 . . 2 . 3 3 6 6 1 3 1 2 . . . . 3 . 2 . . 1 1 2 . . . 1 . . . 1 2 . 1 3 2 . 4 . Treads 19 | 2 . . 2 . 3 2 3 6 1 . . . . . . . . . . . . . . . . . . . . . . . . . . . . . . . Leg 4 | . . . . . . . 3 . . . . . . . . . . . . . . . 1 . . . . . . . . . . . . . . . . . Wheel . | . . . . . . . . . . . . . . . . . . . . . . . . . . . . . . . . . . . . . . . . . Hover 1 | . . . . . . 1 . . . . . . . . . . . . . . . . . . . . . . . . . . . . . . . . . . Flight 28 | . . . . . . . . . . 3 1 2 . . . . 3 . 2 . . 1 . 2 . . . 1 . . . 1 2 . 1 3 2 . 4 . Utility 124 | 1 3 2 2 2 1 5 3 1 1 5 . . . 3 8 1 1 . 7 . 2 1 . 4 7 . 7 2 . 2 3 . 12 2 7 12 . 9 6 2 Device 13 | . . 1 2 1 . 1 2 . . 1 . . . . 1 . . . . . . . . . . . . 1 . . . . 1 . 2 . . . . . Storage 5 | 1 2 . . . . . . . . . . . . . . . . . . . . . . . . . . . . . . . . . 2 . . . . . Processor 8 | . . . . . . . . . . 2 . . . . . . 1 . . . . 1 . . . . . 1 . 1 . . . . 1 . . . 1 . Hackware 82 | . . . . . . . . . . 2 . . . 2 7 1 . . 7 . 1 . . 2 7 . 7 . . 1 3 . 10 2 2 12 . 9 5 2 Protection 16 | . 1 1 . 1 1 4 1 1 1 . . . . 1 . . . . . . 1 . . 2 . . . . . . . . 1 . . . . . . . Artifact . | . . . . . . . . . . . . . . . . . . . . . . . . . . . . . . . . . . . . . . . . . Weapon 47 | 2 5 1 1 . 4 1 1 4 1 . . 3 . 2 3 1 . . . . 3 . . . . . . 1 . . . 1 3 2 6 2 . . . . Energy Gun 6 | . . . . . . 1 1 2 . . . . . . . . . . . . . . . . . . . . . . . . . . 2 . . . . . Energy Cannon 3 | . . . . . . . . . . . . . . . . . . . . . . . . . . . . . . . . . . 1 2 . . . . . Ballistic Gun 8 | 2 1 . . . 2 . . 2 . . . . . . . . . . . . . . . . . . . . . . . . . . 1 . . . . . Ballistic Cannon 4 | . 2 1 . . . . . . 1 . . . . . . . . . . . . . . . . . . . . . . . . . . . . . . . Launcher 4 | . 1 . 1 . . . . . . . . . . 1 1 . . . . . . . . . . . . . . . . . . . . . . . . . Special Weapon 13 | . 1 . . . . . . . . . . 1 . . 2 . . . . . 2 . . . . . . 1 . . . 1 2 . 1 2 . . . . Impact Weapon 1 | . . . . . 1 . . . . . . . . . . . . . . . . . . . . . . . . . . . . . . . . . . . Slashing Weapon 4 | . . . . . 1 . . . . . . 1 . 1 . 1 . . . . . . . . . . . . . . . . . . . . . . . . Piercing Weapon 3 | . . . . . . . . . . . . . . . . . . . . . 1 . . . . . . . . . . . 1 1 . . . . . . Special Melee Weapon 1 | . . . . . . . . . . . . 1 . . . . . . . . . . . . . . . . . . . . . . . . . . . . Unidentified Prototypes 24 | . . 1 1 . . 2 . 3 . . . 2 . . . . 1 . . . . . . . . . . . . . . . 2 . 11 . 1 . . . Parts Lost 65 | . 2 1 3 . 3 3 10 2 5 . . . 3 . 2 . 1 . . 1 1 . . 1 . . 3 . . . 5 . 3 . . 3 . . 5 8 Power 9 | . 1 . 1 . 1 . 1 . 1 . . . . . . . . . . . . . . . . . . . . . 1 . . . . 1 . . 1 1 Propulsion 18 | . . . 1 . . 1 6 . 2 . . . . . . . 1 . . 1 . . . . . . . . . . 1 . 1 . . 1 . . . 3 Utility 28 | . . 1 1 . . 2 2 1 1 . . . 2 . 2 . . . . . . . . 1 . . 3 . . . 2 . 2 . . 1 . . 4 3 Weapon 10 | . 1 . . . 2 . 1 1 1 . . . 1 . . . . . . . 1 . . . . . . . . . 1 . . . . . . . . 1 Highest Loss Streak 5 | . 2 1 2 . 2 1 5 1 2 . . . 2 . 1 . 1 . . 1 1 . . 1 . . 2 . . . 4 . 1 . . 2 . . 4 4 To Critical Strikes 1 | . . . . . . . . . . . . . . . . . . . . . . . . . . . . . . . . . . . . . . . 1 . Average Backups 8 | 3 12 15 14 15 14 14 12 14 14 6 5 4 4 4 4 4 5 5 4 5 5 4 5 5 4 5 4 5 5 5 4 4 4 4 4 4 5 5 4 4 Power . | . . . . . . . . . . . . . . . . . . . . . . . . . . . . 1 1 1 . . . . . . . . . . Propulsion 1 | 1 2 4 3 5 4 3 2 2 3 . . . . . . . . . . . . . . . . . . . . . . . . . . . . . . . Utility 3 | . 2 3 4 4 5 4 4 4 4 3 3 3 3 2 3 3 4 4 3 4 4 3 4 4 3 4 3 3 3 3 3 3 3 3 2 1 3 3 3 2 Weapon 3 | . 5 7 7 6 5 6 5 5 4 1 1 . . 1 1 1 1 1 1 1 1 1 1 1 1 1 1 1 1 1 . 1 1 1 2 2 2 2 1 1 Tool/Special . | . . . . . . . . . . . . . . . . . . . . . . . . . . . . . . . . . . . . . . . . . Unused Backups 27 | . . 1 5 . 4 3 1 . . 1 . 1 2 . 2 . . . 1 . . . . . 1 . . . . . . . 1 . 1 1 . . . 2 Power . | . . . . . . . . . . . . . . . . . . . . . . . . . . . . . . . . . . . . . . . . . Propulsion 3 | . . . 2 . 1 . . . . . . . . . . . . . . . . . . . . . . . . . . . . . . . . . . . Utility 15 | . . . . . 1 2 1 . . . . 1 2 . 1 . . . 1 . . . . . 1 . . . . . . . 1 . 1 1 . . . 2 Weapon 8 | . . 1 3 . 2 1 . . . 1 . . . . . . . . . . . . . . . . . . . . . . . . . . . . . . Tool/Special 1 | . . . . . . . . . . . . . . . 1 . . . . . . . . . . . . . . . . . . . . . . . . . Average Slot Usage (%) 87 | . 95 97 88 92 92 89 85 98 99 75 82 84 88 89 91 84 85 85 91 89 83 61 75 81 86 88 85 82 84 85 85 81 79 82 85 84 78 84 81 88 Engine 3 | . 11 14 9 9 4 6 2 5 6 . . . . . . . . . . . . . 5 . . . . . . . . . . . . . . . . . Core 2 | . . . . . . . 4 4 2 7 7 7 7 7 7 6 6 6 6 6 6 . . 3 5 5 5 5 5 5 4 . . . . . . . . . Reactor 1 | . . . . . . . . . . . . . . . . . . . . . . . . . . . . . . . . 5 5 4 4 4 4 4 3 3 Treads 11 | . 27 28 33 31 33 34 20 30 35 3 . . . . . . . . . . . . . . . . . . . . . . . . . . . . . . Flight 15 | . . . . . . . . . . 19 28 29 30 29 30 26 28 32 33 29 26 18 22 22 23 23 23 21 21 21 20 18 22 23 23 22 21 21 20 19 Device 3 | . . . 8 14 11 3 4 18 18 8 7 7 4 . . . . . . . . . . . . . . . . . . . 1 4 3 . . . . . Storage 4 | . 14 14 11 11 11 9 9 9 9 1 . . . . . . . . . . . . . . . . . . . . . . . . . . . . . . Processor 1 | . . . . . . . . . . 5 7 7 7 2 . . . . . . . . 5 5 5 5 5 9 10 10 9 5 . . . . . . . 3 Hackware 20 | . . . . . . . . . . 12 15 15 15 27 29 32 33 33 38 40 38 29 29 30 33 35 32 29 26 27 31 42 34 35 38 41 39 45 45 53 Protection 6 | . 13 11 4 3 11 17 16 8 9 6 7 7 7 4 6 6 3 . . . . . . 3 5 5 5 5 5 4 4 . 4 4 3 4 4 4 2 . Energy Gun 1 | . . . . . . 7 14 6 . . . . . . . . . . . . . . . . . . . . . . . . . . . . . . . . Ballistic Gun 2 | . 12 . . . 6 9 2 11 11 . . . . . . . . . . . . . . . . . . . . . . . . . . . . . . . Ballistic Cannon 3 | . 15 28 21 20 10 . . . 3 1 . . . . . . . . . . . . . . . . . . . . . . . . . . . . . . Special Weapon 2 | . . . . . . . . . . . . . 6 6 6 6 6 6 5 6 5 5 5 5 5 5 5 5 10 10 8 5 5 4 4 4 4 4 4 4 Slashing Weapon 1 | . . . . . 2 1 1 . 1 5 7 7 6 7 7 5 6 6 6 6 3 . . . . . . . . . . . . . . . . . . . Piercing Weapon 1 | . . . . . . . . . . . . . . . . . . . . . 1 5 5 5 4 5 4 5 5 5 5 5 5 4 4 4 4 4 4 4 Peak Build Rating 162 | 6 8 15 17 21 20 33 33 34 34 35 46 55 55 55 57 64 68 58 81 81 80 82 87 94 98 96 97 106 102 108 108 112 121 122 127 134 138 154 155 162 Average Rating 63 | 5 7 11 14 17 18 27 29 30 32 32 44 48 53 53 55 63 60 57 69 76 73 65 73 84 95 96 92 98 102 103 104 103 109 112 114 118 136 148 147 146 On Entrance 69 | . 6 8 13 16 18 18 30 30 34 30 34 46 55 49 55 57 64 58 58 81 73 72 74 74 90 96 96 95 102 102 108 99 108 107 114 112 128 138 150 144 Avg Prop Armor Cover (%) 7 | . . . . . . . 7 7 . . . . . . . . 3 . . . . 8 . . . . . . . . . . . . . . . . . 28 Naked Turns . | . . . . . . . . . . . . . . . . . . . . . . . . . . . . . . . . . . . . . . . . . Heaviest Build 53 | 14 32 40 42 45 47 53 53 45 45 40 12 19 19 23 23 20 20 16 16 16 21 22 22 33 33 33 36 36 36 36 38 20 35 32 44 38 38 38 42 33 Greatest Support 82 | 40 40 40 60 60 60 80 80 82 82 62 26 32 28 28 32 28 28 27 32 32 24 25 25 34 34 34 34 41 41 41 41 43 43 36 36 40 42 45 43 42 Greatest Overweight (x) 11 | . . . . 1 . . 11 . . . . . . . . . 1 . . . . 1 4 1 . . 1 . . . . . 1 . 1 . . . . 2 Average Overweight (x) . | . . . . . . . . . . . . . . . . . . . . . . . . . . . . . . . . . . . . . . . . . Largest Inventory Capacity 15 | 8 15 15 15 15 15 15 15 15 15 15 5 5 5 5 5 5 5 5 5 5 5 5 5 5 5 5 5 5 5 5 5 5 5 5 5 5 5 5 5 5 Average Capacity 8 | 7 14 15 15 15 15 15 15 15 15 6 5 5 5 5 5 5 5 5 5 5 5 5 5 5 5 5 5 5 5 5 5 5 5 5 5 5 5 5 5 5 Most Carried 15 | 5 15 15 15 15 15 15 15 15 15 15 5 5 5 5 5 5 5 5 5 5 5 5 5 5 5 5 5 5 5 5 5 5 5 5 5 5 5 5 5 5 Average Carried 8 | 3 12 14 14 15 14 14 12 14 14 6 4 4 4 4 4 4 5 5 4 5 4 4 5 5 4 5 4 4 5 4 4 4 4 4 4 4 5 5 4 4 Final Capacity 15 | 8 15 15 15 15 15 15 15 15 15 5 5 5 5 5 5 5 5 5 5 5 5 5 5 5 5 5 5 5 5 5 5 5 5 5 5 5 5 5 5 5 Final Carried 15 | 5 15 15 15 15 14 15 12 15 14 5 5 5 4 5 5 5 5 5 5 5 5 5 5 5 5 5 5 5 5 5 4 5 5 5 4 5 5 5 5 5 Class Distribution -------------------- 49% | Botlord-Sprinter 20% | Scavenger-Mutant 19% | Mutant 5% | Sprinter Dominant Class ---------------- Mutant | -10/Materials Mutant | -10/Mines Mutant | -9/Materials Mutant | -9/Storage Scavenger-Mutant | -9/Garrison Scavenger-Mutant | -8/Materials Scavenger-Mutant | -8/Garrison Scavenger-Mutant | -8/Materials Scavenger-Mutant | -8/Garrison Sprinter | -7/Factory Sprinter | -7/Waste Sprinter | -7/Factory Bothacker-Sprinter | -7/Garrison Botlord-Sprinter | -7/Factory Botlord-Sprinter | -7/Garrison Botlord-Sprinter | -6/Factory Botlord-Sprinter | -6/Waste Botlord-Sprinter | -6/Factory Botlord-Sprinter | -6/Garrison Botlord-Sprinter | -6/Factory Botlord-Sprinter | -6/Garrison Botlord-Sprinter | -5/Factory Botlord-Sprinter | -5/Waste Botlord-Sprinter | -5/Factory Botlord-Sprinter | -5/Garrison Botlord-Sprinter | -5/Factory Botlord-Sprinter | -5/Garrison Botlord-Sprinter | -4/Factory Botlord-Sprinter | -4/Waste Botlord-Sprinter | -4/Factory Botlord-Sprinter | -4/Garrison Botlord-Sprinter | -4/Factory Botlord-Sprinter | -4/Garrison Botlord-Sprinter | -3/Research Botlord-Sprinter | -3/Testing Botlord-Sprinter | -3/Garrison Botlord-Sprinter | -2/Research Commander-Sprinter | -2/Garrison Botlord-Sprinter | -1/Access Botlord-Mutant | -1/Command Resources | -11 -10 -10 -9 -9 -9 -8 -8 -8 -8 -7 -7 -7 -7 -7 -7 -6 -6 -6 -6 -6 -6 -5 -5 -5 -5 -5 -5 -4 -4 -4 -4 -4 -4 -3 -3 -3 -2 -2 -1 -1 ----------- Run | Yrd Mat Min Mat Sto Gar Mat Gar Mat Gar Fac Was Fac Gar Fac Gar Fac Was Fac Gar Fac Gar Fac Was Fac Gar Fac Gar Fac Was Fac Gar Fac Gar Res Tes Gar Res Gar Acc Com Matter Collected 9634 | 346 398 374 237 46 583 360 331 246 484 93 206 151 57 104 699 20 90 . 367 46 93 140 90 46 493 . 324 53 . 158 224 148 672 117 164 556 . 675 342 101 Remotely . | . . . . . . . . . . . . . . . . . . . . . . . . . . . . . . . . . . . . . . . . . Salvage Created 8967 | 151 655 189 290 83 304 825 580 372 661 116 . 313 89 101 536 23 137 . 90 147 35 435 . 147 167 . 121 53 . 158 85 138 480 96 186 522 . 377 128 177 Parts 553 | 10 51 10 18 3 22 48 32 25 40 11 . 31 10 6 22 5 6 . 6 4 5 17 . 8 23 . 10 4 . 6 6 8 29 3 13 20 . 14 18 9 Haulers Intercepted 12 | . 2 . 2 1 . 1 . 3 . 1 . 1 . . . . . . . . . 1 . . . . . . . . . . . . . . . . . . Recyclers Shooed 6 | 1 2 . 1 . . . . . . . . 2 . . . . . . . . . . . . . . . . . . . . . . . . . . . . Parts Field Recycled . | . . . . . . . . . . . . . . . . . . . . . . . . . . . . . . . . . . . . . . . . . Retrieved Matter . | . . . . . . . . . . . . . . . . . . . . . . . . . . . . . . . . . . . . . . . . . Parts Self-Destructed . | . . . . . . . . . . . . . . . . . . . . . . . . . . . . . . . . . . . . . . . . . Prevented . | . . . . . . . . . . . . . . . . . . . . . . . . . . . . . . . . . . . . . . . . . Parts Restored . | . . . . . . . . . . . . . . . . . . . . . . . . . . . . . . . . . . . . . . . . . Kills | -11 -10 -10 -9 -9 -9 -8 -8 -8 -8 -7 -7 -7 -7 -7 -7 -6 -6 -6 -6 -6 -6 -5 -5 -5 -5 -5 -5 -4 -4 -4 -4 -4 -4 -3 -3 -3 -2 -2 -1 -1 ------- Run | Yrd Mat Min Mat Sto Gar Mat Gar Mat Gar Fac Was Fac Gar Fac Gar Fac Was Fac Gar Fac Gar Fac Was Fac Gar Fac Gar Fac Was Fac Gar Fac Gar Res Tes Gar Res Gar Acc Com Combat Hostiles Destroyed 178 | . 21 8 8 2 10 17 21 4 20 . . 8 7 . 10 . . . 4 . 3 1 . . 8 . 3 . . . 1 2 9 2 1 4 . 2 2 . Melee 27 | . . . . . 1 1 1 . . . . 2 . . 5 . . . . . . 1 . . 1 . . . . . 1 2 2 2 1 4 . 2 1 . Guns 63 | . 13 . . . 5 16 15 4 10 . . . . . . . . . . . . . . . . . . . . . . . . . . . . . . . Cannons 22 | . 2 8 4 2 4 . . . 2 . . . . . . . . . . . . . . . . . . . . . . . . . . . . . . . AOE 66 | . 6 . 4 . . . 5 . 8 . . 6 7 . 5 . . . 4 . 3 . . . 7 . 3 . . . . . 7 . . . . . 1 . Classes Destroyed 17 | 3 4 . 2 . 2 3 1 . 2 . . . . . . . . . . . . . . . . . . . . . . . . . . . . . . . Worker 9 | 2 1 . . . . . . . . 2 . 1 . 1 . . . . . . . 1 . . . . . . . . . . . . . . . . . 1 Builder 5 | . . . . . . 1 . 1 . . . . . . . 1 . . . . . . . . . . . . . . . . . . 2 . . . . . Tunneler 4 | 2 . . . . . 1 . . . . . . . . . . . . . . . . . . . . . . . . . . . . . . . . 1 . Hauler 12 | . 2 . 2 1 . 1 . 3 . 1 . 1 . . . . . . . . . 1 . . . . . . . . . . . . . . . . . . Recycler 7 | 1 . . . . . . . . . . . . . 1 . . . . . 1 . 2 . . . . . . . 1 . . . . . . . . . 1 Operator 5 | . 1 . . . . . . . . 1 . 1 . . . . . . . . . . . . . . . 1 . . . . . . . . . . . 1 Watcher 4 | . . . . . . 1 . . . . . 1 . . . . . . . . . . . . . . 1 1 . . . . . . . . . . . . Swarmer 61 | . 9 3 4 . 3 . 7 . . . . 6 7 . 5 . . . 4 . 3 . . . 4 . . . . . . . 1 1 . 1 . . 3 . Cutter 14 | . . . . . . . . . 3 . . . . . . . . . . . . . . . 3 . 3 . . . . . 4 . . . . . 1 . Grunt 66 | . 12 5 1 . 2 10 10 1 12 . . . . . 2 . . . 1 . . 1 . . . . . . . . . . 3 . . 3 . 3 . . Brawler 4 | . . . 1 . 1 . . . 1 . . . . . . . . . . . . . . . . . . . . . . . . . . 1 . . . . Duelist 4 | . . . . . 2 1 . . . . . . . . 1 . . . . . . . . . . . . . . . . . . . . . . . . . Sentry 22 | . . . 2 2 2 5 3 2 1 . . . . . . . . . . . . . . . . . 1 . . . 1 . 1 1 . 1 . . . . Demolisher 1 | . . . . . . . 1 . . . . . . . . . . . . . . . . . . . . . . . . . . . . . . . . . Specialist 1 | . . . . . 1 . . . . . . . . . . . . . . . . . . . . . . . . . . . . . . . . . . . Hunter 3 | . . . . . . 1 . 1 . . . . . . . . . . . . . . . . . . . . . . . . . . . . . 1 . . Programmer 12 | . . . . . . . . . 3 . . 2 . . 2 . . . . . . . . . 1 . . . . . . 1 2 . . 1 . . . . Protovariant D 1 | . . . . . . . . . . . . . . . . . . . . . . . . . . . . . . . . . . . 1 . . . . . Protovariant P 1 | . . . . . . . . . . . . . . . . . . . . . . . . . . . . . . . . . . . 1 . . . . . Thug 1 | . . . . . . . . . . . . . . . . . . . . . . . . . . . . . . . . 1 . . . . . . . . Martyr 4 | . . . . . . . . . . . . . . . . . 2 . . . . . . 2 . . . . . . . . . . . . . . . . Best Kill Streak 8 | 2 7 4 4 2 3 4 8 2 4 1 . 4 4 2 5 1 . . 4 1 3 3 . . 7 . 3 1 . 1 1 1 7 1 2 2 . 1 2 3 Combat Bots Only 8 | . 6 4 4 1 3 4 8 1 4 . . 4 4 . 5 . . . 4 . 3 1 . . 7 . 3 . . . 1 1 7 1 1 2 . 1 1 . Max Kills in Single Turn 4 | 1 4 1 2 1 1 2 3 1 3 1 . 4 4 1 2 1 1 . 2 1 2 1 . 1 4 . 2 1 . 1 1 1 3 1 1 1 . 1 1 1 Gunslinging . | . . . . . . . . . . . . . . . . . . . . . . . . . . . . . . . . . . . . . . . . . Exploded 4 | . 3 . 2 . . . 3 . 3 . . 4 4 . 2 . . . 2 . 2 . . . 4 . 2 . . . . . 3 . . . . . 1 . Melee 1 | . . . . . 1 1 1 . . . . 1 . . 1 . . . . . . 1 . . 1 . . . . . 1 1 1 1 1 1 . 1 1 . Uniques/NPCs Destroyed . | . . . . . . . . . . . . . . . . . . . . . . . . . . . . . . . . . . . . . . . . . Combat | -11 -10 -10 -9 -9 -9 -8 -8 -8 -8 -7 -7 -7 -7 -7 -7 -6 -6 -6 -6 -6 -6 -5 -5 -5 -5 -5 -5 -4 -4 -4 -4 -4 -4 -3 -3 -3 -2 -2 -1 -1 -------- Run | Yrd Mat Min Mat Sto Gar Mat Gar Mat Gar Fac Was Fac Gar Fac Gar Fac Was Fac Gar Fac Gar Fac Was Fac Gar Fac Gar Fac Was Fac Gar Fac Gar Res Tes Gar Res Gar Acc Com Hostile Shots Fired 881 | . 59 21 26 17 45 84 133 29 99 . . 38 31 . 30 . . . 6 . 12 1 . 6 18 . 8 12 . . 28 2 61 . 18 28 . 25 9 35 Missed 322 | . 18 4 4 7 12 17 47 3 28 . . 24 13 . 14 . . . 3 . 2 . . 4 10 . 3 5 . . 15 2 30 . 16 12 . 12 6 11 Hits 559 | . 41 17 22 10 33 67 86 26 71 . . 14 18 . 16 . . . 3 . 10 1 . 2 8 . 5 7 . . 13 . 31 . 2 16 . 13 3 24 Melee 13 | . . . 1 . 3 . . . 2 . . . . . . . . . . . . . . . . . . . . . 7 . . . . . . . . . Projectile 546 | . 41 17 21 10 30 67 86 26 69 . . 14 18 . 16 . . . 3 . 10 1 . 2 8 . 5 7 . . 6 . 31 . 2 16 . 13 3 24 AOE 18 | . . . . . . . 6 . 2 . . . . . . . . . . . . . . . 2 . 3 . . . . 1 2 . . . . . 1 1 Critical Strikes 22 | . . . 2 . 1 2 3 . 6 . . . . . . . . . . . 1 . . . 1 . . 1 . . 2 . 2 . . . . . 1 . Part Disruptions 1 | . . . . . . . . . . . . . . . . . . . . . . . . . . . . . . . . . . . . 1 . . . . Damage Taken 11291 | . 529 198 278 155 413 1052 1370 414 1163 . . 179 275 . 217 . 191 . 69 86 140 19 . 37 244 . 345 144 . . 530 29 687 . 16 631 . 347 376 1157 Core 1733 | . 46 . 53 . 72 124 215 14 80 . . . 29 . 40 . 8 . . 22 12 19 . . 33 . 55 22 . . 86 . 143 . . 93 . 49 26 492 Absorbed by Shields 474 | . . . . . . . 66 . 43 . . . 14 . . . . . . . 10 . . 6 39 . 23 . . . 108 . 38 . . 51 . 76 . . Redirected to Shielding 52 | . 48 4 . . . . . . . . . . . . . . . . . . . . . . . . . . . . . . . . . . . . . . Regen/Repaired (Parts) 1000 | . 251 . . . . . . 105 . . 39 87 . . . . 18 30 33 24 37 . . . . . . . . . . 59 100 . . 217 . . . . Core Remaining (%) 79 | 100 . 81 . . 68 . . . 21 . . . . . 90 . . . . . 95 . . . . . 89 . . . . . 78 . . 92 . 96 . 67 Volleys Fired 759 | 21 51 18 23 11 26 51 60 26 53 . . 6 19 . 27 2 7 . 51 . 7 4 5 3 35 . 12 18 . . 21 2 45 13 6 29 . 55 23 29 Largest 2 | 2 2 2 2 2 2 2 2 2 2 . . 1 1 . 1 1 1 . 1 . 1 1 1 1 1 . 1 1 . . 1 1 1 1 1 1 . 1 1 1 Hottest 130 | 40 60 78 78 78 78 45 93 120 70 . . 33 33 . 39 5 5 . 39 . 39 10 10 10 39 . 39 10 . . 39 5 39 113 113 10 . 10 39 130 Shots Fired 1053 | 42 96 36 42 21 42 95 111 51 98 . . 6 19 . 27 2 7 . 51 . 7 4 5 3 35 . 12 18 . . 21 2 45 13 6 29 . 55 23 29 Gun 449 | 42 72 . . . 12 95 104 51 73 . . . . . . . . . . . . . . . . . . . . . . . . . . . . . . . Cannon 188 | . 17 36 38 21 30 . . . 16 . . . . . . . . . . . . . . . . . . . . . . . . 2 4 . . . . 24 Launcher 65 | . 7 . 4 . . . 7 . 9 . . 5 9 . 7 . . . 2 . 2 . . . 3 . 2 . . . 1 . 5 . . . . . 2 . Special 351 | . . . . . . . . . . . . 1 10 . 20 2 7 . 49 . 5 4 5 3 32 . 10 18 . . 20 2 40 11 2 29 . 55 21 5 Kinetic 456 | 42 89 36 38 21 42 51 23 25 89 . . . . . . . . . . . . . . . . . . . . . . . . . . . . . . . Thermal 181 | . . . . . . 44 81 26 . . . . . . . . . . . . . . . . . . . . . . . . . 2 4 . . . . 24 Explosive 65 | . 7 . 4 . . . 7 . 9 . . 5 9 . 7 . . . 2 . 2 . . . 3 . 2 . . . 1 . 5 . . . . . 2 . Electromagnetic . | . . . . . . . . . . . . . . . . . . . . . . . . . . . . . . . . . . . . . . . . . Robot Hit Streak 43 | 5 21 8 5 7 3 18 15 11 24 . . . 8 . 12 1 8 . 9 . 11 5 10 13 20 . 24 10 . . 22 1 20 10 12 23 . 43 7 3 Robot Miss Streak 5 | 5 3 4 5 2 3 2 4 1 4 . . . . . 4 2 . . 2 . 1 . . . 1 . 1 3 . . 1 1 2 1 . 2 . 1 3 1 Penetration Max 2 | . . 2 1 . 1 . . . 1 . . . . . . . . . . . . . . . . . . . . . . . . . . . . . . . Secondary Targets 9 | . 3 . . . 1 2 3 . . . . . . . . . . . . . . . . . . . . . . . . . . . . . . . . . Max Gunslinging Chain 1 | . 1 . . . 1 1 1 . . . . . . . . . . . . . . . . . . . . . . . . . . . . . . . . . Shots Hit Robots 804 | 22 58 18 16 14 17 79 71 35 65 5 . 20 4 3 26 2 13 . 40 1 4 9 5 6 29 . 8 15 . 1 22 3 45 15 13 40 . 51 21 8 Core Hits 352 | 6 38 10 12 5 13 45 36 12 40 2 . 17 7 1 15 1 2 . 4 1 4 5 . 2 9 . 8 1 . 1 3 2 21 1 5 9 . 4 9 1 Critical Kills 9 | . . 1 2 2 2 1 . . 1 . . . . . . . . . . . . . . . . . . . . . . . . . . . . . . . Critical Parts Destroyed 17 | . . 4 5 5 2 1 . . . . . . . . . . . . . . . . . . . . . . . . . . . . . . . . . . Critical Strikes 45 | . . 5 8 9 4 5 2 1 1 . . 1 . . 1 . . . . . . . . . 1 . . 1 . . . . 2 . 1 1 . 1 1 . Burn 6 | . . . . . . 3 2 1 . . . . . . . . . . . . . . . . . . . . . . . . . . . . . . . . Destroy 27 | . . 5 7 8 4 2 . . 1 . . . . . . . . . . . . . . . . . . . . . . . . . . . . . . . Blast 2 | . . . 1 1 . . . . . . . . . . . . . . . . . . . . . . . . . . . . . . . . . . . . Sever 2 | . . . . . . . . . . . . 1 . . 1 . . . . . . . . . . . . . . . . . . . . . . . . . Impale 8 | . . . . . . . . . . . . . . . . . . . . . . . . . 1 . . 1 . . . . 2 . 1 1 . 1 1 . Melee Attacks 445 | . . . . . 19 4 10 1 6 9 . 76 4 7 59 2 6 2 11 4 8 7 . 9 10 1 10 15 . 8 17 6 22 10 24 27 . 24 19 8 Impact 10 | . . . . . 10 . . . . . . . . . . . . . . . . . . . . . . . . . . . . . . . . . . . Slashing 217 | . . . . . 9 4 10 1 6 9 . 76 4 7 59 2 6 2 11 4 7 . . . . . . . . . . . . . . . . . . . Piercing 218 | . . . . . . . . . . . . . . . . . . . . . 1 7 . 9 10 1 10 15 . 8 17 6 22 10 24 27 . 24 19 8 Sneak Attacks 77 | . . . . . . . . . . 5 . 7 . 3 1 1 6 . 4 1 . 4 . 3 . . 1 . . 1 1 1 3 4 7 14 . 3 5 2 Combat Hostiles 10 | . . . . . . . . . . . . . . . 1 . . . . . . . . . . . 1 . . . 1 . . 4 . 2 . 1 . . Follow-up Attacks . | . . . . . . . . . . . . . . . . . . . . . . . . . . . . . . . . . . . . . . . . . Damage Inflicted 24006 | 306 1100 402 738 343 427 1636 1581 705 2039 344 . 1445 468 220 1676 103 602 . 779 115 249 448 . 204 756 . 427 112 . 150 389 207 1837 418 869 1420 . 321 815 355 Guns 5590 | 306 628 . . . 137 1614 1275 657 973 . . . . . . . . . . . . . . . . . . . . . . . . . . . . . . . Cannons 1762 | . 164 398 359 343 273 . . . 225 . . . . . . . . . . . . . . . . . . . . . . . . . . . . . . . Explosions 6356 | . 298 . 379 . . . 299 . 841 . . 467 468 . 773 . . . 357 . 186 . . . 417 . 287 . . . 180 . 1190 . . . . . 214 . Melee 10227 | . . . . . . . . 37 . 344 . 978 . 220 903 103 602 . 422 115 63 448 . 204 339 . 140 112 . 150 209 207 647 418 869 1420 . 321 601 355 Ramming 71 | . 10 4 . . 17 22 7 11 . . . . . . . . . . . . . . . . . . . . . . . . . . . . . . . . Kinetic 5384 | 306 792 398 359 343 410 922 323 333 1198 . . . . . . . . . . . . . . . . . . . . . . . . . . . . . . . Thermal 1968 | . . . . . . 692 952 324 . . . . . . . . . . . . . . . . . . . . . . . . . . . . . . . . Explosive 6356 | . 298 . 379 . . . 299 . 841 . . 467 468 . 773 . . . 357 . 186 . . . 417 . 287 . . . 180 . 1190 . . . . . 214 . Electromagnetic . | . . . . . . . . . . . . . . . . . . . . . . . . . . . . . . . . . . . . . . . . . Impact . | . . . . . . . . . . . . . . . . . . . . . . . . . . . . . . . . . . . . . . . . . Slashing 3787 | . . . . . . . . 37 . 344 . 978 . 220 903 103 602 . 422 115 63 . . . . . . . . . . . . . . . . . . . Piercing 6440 | . . . . . . . . . . . . . . . . . . . . . . 448 . 204 339 . 140 112 . 150 209 207 647 418 869 1420 . 321 601 355 Highest Corruption 13 | . 1 1 . . . 1 1 1 1 . . 6 6 6 6 . 1 1 1 1 1 . . . . . 3 1 6 6 6 6 9 . . 2 . 4 3 13 Average Corruption 3 | . 1 1 . . . 1 1 1 1 . . 5 6 6 6 . 1 1 1 1 1 . . . . . 3 1 3 6 6 6 8 . . 1 . 3 3 5 Corruption Purged . | . . . . . . . . . . . . . . . . . . . . . . . . . . . . . . . . . . . . . . . . . Corruption Blocked . | . . . . . . . . . . . . . . . . . . . . . . . . . . . . . . . . . . . . . . . . . Effects 219 | . 10 7 . . . 4 9 3 4 . . 13 7 6 33 . . 5 6 5 2 . . . . . 9 4 . 3 11 5 49 . . 3 . 14 2 5 Message Errors 53 | . 1 1 . . . 2 . 1 . . . 1 1 . 8 . . 2 . 2 2 . . . . . 4 1 . . 4 3 15 . . . . 4 1 . Matter Fused 65 | . 2 1 . . . 2 4 2 . . . 6 4 4 9 . . 2 . 1 . . . . . . 4 2 . . 3 . 14 . . . . 2 . 3 Heat Flow Errors 35 | . 2 1 . . . . 1 . 1 . . 1 2 . 5 . . . 1 1 . . . . . . . 1 . 1 3 1 9 . . 1 . 3 . 1 Energy Discharges 21 | . . 1 . . . . . . . . . 3 . 1 4 . . 1 1 . . . . . . . 1 . . 1 1 1 3 . . . . 3 . . Parts Rejected 2 | . . . . . . . 1 . 1 . . . . . . . . . . . . . . . . . . . . . . . . . . . . . . . Parts Fused 3 | . . . . . . . . . . . . . . . 1 . . . . . . . . . . . . . . . . . . . . . . 1 1 . Data Loss (minor) 26 | . 3 1 . . . . 2 . 1 . . 1 . 1 4 . . . 2 1 . . . . . . . . . 1 . . 7 . . 1 . 1 . . Data Loss (major) 6 | . 1 1 . . . . . . . . . . . . 2 . . . 1 . . . . . . . . . . . . . . . . . . . . 1 Misfires 3 | . 1 . . . . . 1 . 1 . . . . . . . . . . . . . . . . . . . . . . . . . . . . . . . Alerts 5 | . . 1 . . . . . . . . . 1 . . . . . . 1 . . . . . . . . . . . . . 1 . . 1 . . . . Overload Shots 5 | . . . . . . . 3 2 . . . . . . . . . . . . . . . . . . . . . . . . . . . . . . . . Overflow Damage 1587 | . 22 5 49 . 8 . . 17 47 89 . 82 62 63 368 . 31 . 103 . . . . . 108 . 54 41 . . . . 48 83 60 16 . . 94 137 Projectiles 13 | . . 5 . . 8 . . . . . . . . . . . . . . . . . . . . . . . . . . . . . . . . . . . Explosions 337 | . 22 . 49 . . . . . 47 . . 16 62 . 126 . . . 2 . . . . . . . 13 . . . . . . . . . . . . . Melee 1237 | . . . . . . . . 17 . 89 . 66 . 63 242 . 31 . 101 . . . . . 108 . 41 41 . . . . 48 83 60 16 . . 94 137 Knockbacks 10 | . . 2 . . 1 . . . 7 . . . . . . . . . . . . . . . . . . . . . . . . . . . . . . . Impact . | . . . . . . . . . . . . . . . . . . . . . . . . . . . . . . . . . . . . . . . . . Kinetic 9 | . . 1 . . 1 . . . 7 . . . . . . . . . . . . . . . . . . . . . . . . . . . . . . . Secondary 1 | . . 1 . . . . . . . . . . . . . . . . . . . . . . . . . . . . . . . . . . . . . . Self-Inflicted Damage 361 | . 74 . . . . . 65 . 80 . . . 84 . . . . . . . . . . . 6 . . . . . 13 . . . . . . . 39 . Shots 15 | . 3 . . . . . 2 . 4 . . . 3 . . . . . . . . . . . 1 . . . . . 1 . . . . . . . 1 . Rammed 14 | . 3 1 . . 3 3 2 2 . . . . . . . . . . . . . . . . . . . . . . . . . . . . . . . . Targets Rammed 17 | . 3 1 . . 4 4 3 2 . . . . . . . . . . . . . . . . . . . . . . . . . . . . . . . . Kicked . | . . . . . . . . . . . . . . . . . . . . . . . . . . . . . . . . . . . . . . . . . Crushed 3 | . . . . . 1 1 1 . . . . . . . . . . . . . . . . . . . . . . . . . . . . . . . . . Highest Temperature 357 | . 178 357 135 56 48 117 243 . 223 . . 252 175 . 247 . . . 268 190 . . . . . . . 219 . 189 263 127 275 124 99 197 . 194 11 261 Average Temperature 73 | . 58 122 43 25 18 35 79 . 75 . . 108 74 . 72 . . . 120 78 . . . . . . . 113 . 101 105 67 93 62 40 85 . 116 4 108 Received Heat Transfer 2339 | . 135 78 96 9 81 486 516 90 501 . . 9 14 . 24 . . . 27 . 4 9 . . 9 . 12 24 . . 18 . 22 . . 52 . 24 . 99 Effects 4 | . . 3 . . . . . . . . . . . . . . . . . . . . . . . . . . . . 1 . . . . . . . . . Shutdowns 1 | . . 1 . . . . . . . . . . . . . . . . . . . . . . . . . . . . . . . . . . . . . . Energy Bleed 1 | . . . . . . . . . . . . . . . . . . . . . . . . . . . . . . . 1 . . . . . . . . . Interference 2 | . . 2 . . . . . . . . . . . . . . . . . . . . . . . . . . . . . . . . . . . . . . Siege Activations . | . . . . . . . . . . . . . . . . . . . . . . . . . . . . . . . . . . . . . . . . . Martial Activations . | . . . . . . . . . . . . . . . . . . . . . . . . . . . . . . . . . . . . . . . . . Shielding Activations . | . . . . . . . . . . . . . . . . . . . . . . . . . . . . . . . . . . . . . . . . . Robots Disrupted . | . . . . . . . . . . . . . . . . . . . . . . . . . . . . . . . . . . . . . . . . . Combat Hostiles . | . . . . . . . . . . . . . . . . . . . . . . . . . . . . . . . . . . . . . . . . . Robots Corrupted . | . . . . . . . . . . . . . . . . . . . . . . . . . . . . . . . . . . . . . . . . . Combat Hostiles . | . . . . . . . . . . . . . . . . . . . . . . . . . . . . . . . . . . . . . . . . . Parts Fried . | . . . . . . . . . . . . . . . . . . . . . . . . . . . . . . . . . . . . . . . . . Impact Corruptions . | . . . . . . . . . . . . . . . . . . . . . . . . . . . . . . . . . . . . . . . . . Robots Melted . | . . . . . . . . . . . . . . . . . . . . . . . . . . . . . . . . . . . . . . . . . Combat Hostiles . | . . . . . . . . . . . . . . . . . . . . . . . . . . . . . . . . . . . . . . . . . Parts Melted 8 | . . . . . . 3 2 2 . . . . . . . . . . . . . . . . . . . . . . . . 1 . . . . . . . Heat Transferred 4220 | . . . . . . 1554 1963 703 . . . . . . . . . . . . . . . . . . . . . . . . . . . . . . . . Parts Sabotaged . | . . . . . . . . . . . . . . . . . . . . . . . . . . . . . . . . . . . . . . . . . Parts Stolen . | . . . . . . . . . . . . . . . . . . . . . . . . . . . . . . . . . . . . . . . . . Parts Stripped . | . . . . . . . . . . . . . . . . . . . . . . . . . . . . . . . . . . . . . . . . . Power Chain Reactions . | . . . . . . . . . . . . . . . . . . . . . . . . . . . . . . . . . . . . . . . . . Alert | -11 -10 -10 -9 -9 -9 -8 -8 -8 -8 -7 -7 -7 -7 -7 -7 -6 -6 -6 -6 -6 -6 -5 -5 -5 -5 -5 -5 -4 -4 -4 -4 -4 -4 -3 -3 -3 -2 -2 -1 -1 ------- Run | Yrd Mat Min Mat Sto Gar Mat Gar Mat Gar Fac Was Fac Gar Fac Gar Fac Was Fac Gar Fac Gar Fac Was Fac Gar Fac Gar Fac Was Fac Gar Fac Gar Res Tes Gar Res Gar Acc Com Maximum Alert Level 4 | . 1 . . . 2 1 3 2 3 2 . 2 2 1 3 2 . . 4 3 4 2 1 1 2 1 3 2 . . 1 . 4 3 2 3 2 1 1 . Low Security (%) 31 | 100 37 100 100 100 30 8 . . 3 . 100 33 . 13 2 . 100 100 11 . . . 71 74 8 . . . 100 100 99 100 6 . . . . 9 85 100 Level 1 30 | . 62 . . . 25 91 19 94 18 93 . 54 35 86 40 22 . . 2 . . . 28 25 5 100 7 82 . . . . 13 . 35 11 70 90 14 . Level 2 23 | . . . . . 43 . 52 5 75 6 . 12 64 . 48 77 . . 13 27 16 100 . . 85 . 43 17 . . . . 16 14 64 54 29 . . . Level 3 11 | . . . . . . . 28 . 2 . . . . . 8 . . . 40 72 57 . . . . . 49 . . . . . 40 85 . 34 . . . . Level 4 3 | . . . . . . . . . . . . . . . . . . . 31 . 25 . . . . . . . . . . . 23 . . . . . . . Level 5 . | . . . . . . . . . . . . . . . . . . . . . . . . . . . . . . . . . . . . . . . . . High Security . | . . . . . . . . . . . . . . . . . . . . . . . . . . . . . . . . . . . . . . . . . Max Security . | . . . . . . . . . . . . . . . . . . . . . . . . . . . . . . . . . . . . . . . . . Peak Influence 1266 | 10 305 148 191 80 632 348 813 410 759 416 142 444 522 258 803 421 140 60 1266 865 1130 628 255 297 688 363 856 449 77 50 208 100 1243 843 486 737 414 385 220 126 Initial 699 | . . 90 . 57 39 308 226 395 165 398 142 . 270 258 127 421 140 60 . 664 584 592 219 13 179 361 226 449 77 46 33 98 30 699 462 222 414 265 215 90 Average 378 | 1 207 45 104 56 358 250 585 314 477 377 92 259 410 224 449 409 115 6 890 751 938 607 144 121 563 343 652 311 74 44 61 42 782 768 405 582 384 292 100 57 Influence Increases 16054 | 25 719 343 334 103 643 474 687 158 644 128 15 907 292 34 836 21 57 2 1476 371 766 106 86 531 859 2 840 98 . 32 344 88 1523 254 228 865 . 434 626 103 Destroy 0b10 Robot/C 6080 | . 420 220 160 40 380 340 420 80 400 . . 160 160 . 300 . . . 640 100 280 20 . 280 380 . 320 20 . . 40 40 380 60 20 200 . 60 160 . Destroy 0b10 Robot/NC 285 | 25 20 . 10 5 . 20 . 20 . 20 . 20 . 10 25 5 . . . 20 . 20 . . . . 5 10 . 5 . . . . 15 . . . 15 15 Destroy Leader 790 | . 84 50 44 22 30 74 20 36 30 2 . 44 . . 10 . . . 20 30 30 2 . 60 30 . 30 12 . . . 10 50 20 . 20 . . 30 . Allied During Kill 2464 | . . 40 . . 33 . . . . . . . 1 . 13 1 . . 579 139 301 20 . 141 190 . 191 1 . . 2 . 278 75 31 191 . 50 181 6 Trap Triggered on 0b10 80 | . . . . . . . . . . . . . . . 80 . . . . . . . . . . . . . . . . . . . . . . . . . Successful Hack 299 | . 26 . 12 5 14 6 . 6 14 28 . 15 . 6 14 . . . 14 9 14 6 . 14 7 . . 8 . . . . . 8 16 14 . 7 36 . Select Force Hacks 60 | . 60 . . . . . . . . . . . . . . . . . . . . . . . . . . . . . . . . . . . . . . . Disable Machine 645 | . 30 30 75 15 15 15 . 15 . 15 . 45 . . 90 . . . . 45 . 15 . 30 . . . . . 15 . . 45 . 105 . . 30 . 15 Anti-Garrison Action 2500 | . . . . . 150 . 150 . 100 . . . 50 . 150 . . . 200 . 100 . . . 200 . 200 . . . 150 . 450 . . 350 . 250 . . Destroy Structure 1396 | . 79 3 33 16 21 4 67 1 100 3 15 68 66 3 64 . 57 2 23 13 26 8 86 6 37 2 34 32 . 12 92 8 170 46 26 15 . 37 84 37 Partial Spotted 540 | . . . . . . . . . . . . 120 . . 45 15 . . . 15 15 15 . . 15 . 45 . . . . . 75 45 15 30 . . 60 30 Lose Combat Pursuer 915 | . . . . . . 15 30 . . 60 . 435 15 15 45 . . . . . . . . . . . 15 15 . . 60 30 75 . . 45 . . 60 . Influence Decreases 16054 | 25 488 574 197 180 71 758 222 716 140 481 421 521 186 344 215 422 372 89 210 802 471 608 695 293 428 367 307 733 154 51 204 232 324 674 755 424 383 429 843 245 Entered New Map 7483 | . . 141 . 80 21 324 122 418 90 361 264 . 116 234 55 382 262 27 . 602 251 538 409 6 78 327 97 407 144 21 15 90 14 544 361 74 323 89 144 52 Time Decay 4508 | 25 468 383 176 100 . 404 . 278 . 120 30 421 . 110 . 40 100 42 . 190 . 50 286 147 . 40 . 206 10 30 . 130 . 110 214 . 60 . 228 110 Search Patrol Dispatched 100 | . . . . . . . . . . . . 100 . . . . . . . . . . . . . . . . . . . . . . . . . . . . Lost Part 541 | . 20 10 21 . 30 30 100 20 50 . . . 30 . 20 . 10 . . 10 10 . . 10 . . 30 . . . 50 . 30 . . 30 . . 20 10 Lost Ally 3422 | . . 40 . . 20 . . . . . 127 . 40 . 140 . . 20 210 . 210 20 . 130 350 . 180 120 . . 139 12 280 20 180 320 . 340 451 73 Squads Dispatched 43 | . 4 . . . . 3 . 2 . 2 . 6 . 1 . . . 1 . 4 . 1 . 4 . . . 2 . . . 1 . 1 2 . . . 8 1 Investigation 7 | . 3 . . . . . . 1 . 1 . . . . . . . . . 1 . . . 1 . . . . . . . . . . . . . . . . Extermination 13 | . . . . . . . . . . . . 3 . 1 . . . 1 . 1 . . . 1 . . . 1 . . . 1 . . . . . . 3 1 Reinforcement 16 | . 1 . . . . . . 1 . 1 . 3 . . . . . . . . . 1 . 1 . . . 1 . . . . . . 2 . . . 5 . Assault 2 | . . . . . . . . . . . . . . . . . . . . 2 . . . . . . . . . . . . . . . . . . . . Garrison 5 | . . . . . . 3 . . . . . . . . . . . . . . . . . 1 . . . . . . . . . 1 . . . . . . Intercept . | . . . . . . . . . . . . . . . . . . . . . . . . . . . . . . . . . . . . . . . . . Searches Triggered 1 | . . . . . . . . . . . . 1 . . . . . . . . . . . . . . . . . . . . . . . . . . . . Construction Impeded 2 | . . . . . . . . 1 . . . . . . . . . . . . . . . . . . . 1 . . . . . . . . . . . . Haulers Reinforced 2 | . . . . . . . . . . . . 1 . . . . . . . . . . . 1 . . . . . . . . . . . . . . . . Active Scanning Responses . | . . . . . . . . . . . . . . . . . . . . . . . . . . . . . . . . . . . . . . . . . Cargo Convoy Interrupts . | . . . . . . . . . . . . . . . . . . . . . . . . . . . . . . . . . . . . . . . . . Alert ID Control Effect 74 | . . . . . . . . . . . . . . . . . . . . . . . . . . . . . . . . . 3 3 3 15 . 19 26 5 Stealth | -11 -10 -10 -9 -9 -9 -8 -8 -8 -8 -7 -7 -7 -7 -7 -7 -6 -6 -6 -6 -6 -6 -5 -5 -5 -5 -5 -5 -4 -4 -4 -4 -4 -4 -3 -3 -3 -2 -2 -1 -1 --------- Run | Yrd Mat Min Mat Sto Gar Mat Gar Mat Gar Fac Was Fac Gar Fac Gar Fac Was Fac Gar Fac Gar Fac Was Fac Gar Fac Gar Fac Was Fac Gar Fac Gar Res Tes Gar Res Gar Acc Com Distress Signals 15 | . 2 . . . . 2 . 2 . . . 5 . . . . . . . . . . . . . . . 1 . . . . 1 . . . . . 2 . Communications Jammed 215 | . . . . . . . . . . . . . . . . . . . . . . 7 . . . . 5 9 . . . . 1 . 14 . . . 176 3 Distress Signals 213 | . . . . . . . . . . . . . . . . . . . . . . 7 . . . . 5 9 . . . . 1 . 14 . . . 174 3 Times Spotted 555 | . 33 11 9 4 19 28 25 15 19 5 6 37 12 6 28 1 5 . 21 4 10 2 3 7 21 . 22 11 4 2 9 6 34 6 12 31 . 28 46 13 Peak Tracking Total 9 | . 9 4 5 3 4 6 6 2 5 2 5 7 5 5 6 1 2 . 7 1 3 2 2 3 5 . 6 3 4 2 7 4 7 2 3 5 . 2 7 7 Tactical Retreats 31 | . . . . . . 1 2 . . 2 . 11 1 1 2 . . . . . . . . . . . 1 1 . . 1 1 2 . . 1 . . 4 . Traps | -11 -10 -10 -9 -9 -9 -8 -8 -8 -8 -7 -7 -7 -7 -7 -7 -6 -6 -6 -6 -6 -6 -5 -5 -5 -5 -5 -5 -4 -4 -4 -4 -4 -4 -3 -3 -3 -2 -2 -1 -1 ------- Run | Yrd Mat Min Mat Sto Gar Mat Gar Mat Gar Fac Was Fac Gar Fac Gar Fac Was Fac Gar Fac Gar Fac Was Fac Gar Fac Gar Fac Was Fac Gar Fac Gar Res Tes Gar Res Gar Acc Com Traps Triggered 98 | . 3 . . 4 1 1 2 3 3 3 . 2 2 1 6 1 . . 10 1 2 2 . 3 9 . 4 1 . . 8 . 9 . . 6 . 9 2 . Indirectly . | . . . . . . . . . . . . . . . . . . . . . . . . . . . . . . . . . . . . . . . . . Trap Hack Attempts . | . . . . . . . . . . . . . . . . . . . . . . . . . . . . . . . . . . . . . . . . . Triggered . | . . . . . . . . . . . . . . . . . . . . . . . . . . . . . . . . . . . . . . . . . Disarmed . | . . . . . . . . . . . . . . . . . . . . . . . . . . . . . . . . . . . . . . . . . Reprogrammed . | . . . . . . . . . . . . . . . . . . . . . . . . . . . . . . . . . . . . . . . . . Reused 8 | . . . . . . . . . . . . . . . 8 . . . . . . . . . . . . . . . . . . . . . . . . . Traps Extracted . | . . . . . . . . . . . . . . . . . . . . . . . . . . . . . . . . . . . . . . . . . Installed 10 | . . . . . . . . . . . . . . . 10 . . . . . . . . . . . . . . . . . . . . . . . . . Triggered 8 | . . . . . . . . . . . . . . . 8 . . . . . . . . . . . . . . . . . . . . . . . . . Most Traps Carried 4 | . . . . . . . . . . . . . . . 4 . . . . . . . . . . . . . . . . . . . . . . . . . Machines | -11 -10 -10 -9 -9 -9 -8 -8 -8 -8 -7 -7 -7 -7 -7 -7 -6 -6 -6 -6 -6 -6 -5 -5 -5 -5 -5 -5 -4 -4 -4 -4 -4 -4 -3 -3 -3 -2 -2 -1 -1 ---------- Run | Yrd Mat Min Mat Sto Gar Mat Gar Mat Gar Fac Was Fac Gar Fac Gar Fac Was Fac Gar Fac Gar Fac Was Fac Gar Fac Gar Fac Was Fac Gar Fac Gar Res Tes Gar Res Gar Acc Com Machines Disabled 92 | . 2 2 5 1 2 1 1 1 1 1 . 3 1 . 10 . . . 5 3 5 1 . 2 4 . 4 . . 1 4 . 9 . 8 7 . 7 . 1 Max in Single Turn 2 | . 2 1 2 1 1 1 1 1 1 1 . 1 1 . 1 . . . 1 1 1 1 . 1 1 . 1 . . 1 1 . 1 . 1 1 . 1 . 1 Garrison Access 8 | . . . . . . . . . . . . 1 . 1 . 1 . . . . . . . 1 . . . . . . . . . 1 . . . . 3 . Garrison Relay 38 | . . . . . 1 . 1 . . . . . 1 . 3 . . . 3 . 2 . . . 5 . 3 . . . 2 . 6 . . 6 . 5 . . Phase Generator 1 | . . . . . . . . . . . . . . . . . . . . . . . . . . . . . . . 1 . . . . . . . . . Machines Repaired . | . . . . . . . . . . . . . . . . . . . . . . . . . . . . . . . . . . . . . . . . . Machines Dismantled . | . . . . . . . . . . . . . . . . . . . . . . . . . . . . . . . . . . . . . . . . . Machines Sabotaged . | . . . . . . . . . . . . . . . . . . . . . . . . . . . . . . . . . . . . . . . . . Overloaded Fab Kills . | . . . . . . . . . . . . . . . . . . . . . . . . . . . . . . . . . . . . . . . . . Hacking | -11 -10 -10 -9 -9 -9 -8 -8 -8 -8 -7 -7 -7 -7 -7 -7 -6 -6 -6 -6 -6 -6 -5 -5 -5 -5 -5 -5 -4 -4 -4 -4 -4 -4 -3 -3 -3 -2 -2 -1 -1 --------- Run | Yrd Mat Min Mat Sto Gar Mat Gar Mat Gar Fac Was Fac Gar Fac Gar Fac Was Fac Gar Fac Gar Fac Was Fac Gar Fac Gar Fac Was Fac Gar Fac Gar Res Tes Gar Res Gar Acc Com Machines Accessed 118 | . 9 1 2 3 3 5 2 5 3 2 . 13 . 5 2 3 . 2 3 3 2 3 . 9 2 1 3 5 . 1 . 1 1 3 6 3 2 1 9 . Terminals 76 | . 6 . 2 2 3 3 2 2 3 1 . 6 . 1 2 2 . . 3 1 2 3 . 5 2 . 3 3 . . . . 1 2 5 3 1 1 6 . Fabricators 10 | . . . . . . . . . . 1 . 4 . 2 . . . . . 1 . . . 1 . . . 1 . . . . . . . . . . . . Repair Stations 4 | . 1 . . . . . . 1 . . . 1 . . . . . 1 . . . . . . . . . . . . . . . . . . . . . . Recycling Units 2 | . 2 . . . . . . . . . . . . . . . . . . . . . . . . . . . . . . . . . . . . . . . Scanalyzers 4 | . . . . . . 1 . 1 . . . . . . . . . . . . . . . 1 . . . 1 . . . . . . . . . . . . Garrison Access 21 | . . . . 1 . 1 . 1 . . . 2 . 2 . 1 . 1 . 1 . . . 2 . 1 . . . 1 . 1 . 1 1 . 1 . 3 . Total Hacks 232 | . 30 1 5 8 4 7 6 8 6 3 . 21 . 10 6 7 . 6 6 10 3 9 . 16 3 1 5 6 . 2 . 2 2 5 10 4 3 2 15 . Successful 109 | . 15 1 2 3 2 3 . 5 2 3 . 9 . 7 1 4 . 4 1 6 1 2 . 9 1 1 2 3 . 2 . 2 . 3 2 1 2 1 9 . Failed 123 | . 15 . 3 5 2 4 6 3 4 . . 12 . 3 5 3 . 2 5 4 2 7 . 7 2 . 3 3 . . . . 2 2 8 3 1 1 6 . Catastrophic 24 | . . . 1 . 1 1 . . 2 . . 4 . . . 1 . . 2 . 1 . . 4 . . 1 1 . . . . . 1 1 1 1 . 1 . Database Lockouts . | . . . . . . . . . . . . . . . . . . . . . . . . . . . . . . . . . . . . . . . . . Manual 68 | . 19 . 5 . . 2 . 3 . 3 . 7 . 5 . 4 . . . . . 5 . 6 . . . 1 . . . . . 2 3 . . . 3 . Terminals 148 | . 16 . 5 5 4 5 6 3 6 2 . 9 . 3 6 5 . . 6 5 3 9 . 8 3 . 5 3 . . . . 2 3 9 4 1 2 10 . Fabricators 19 | . . . . . . . . . . 1 . 7 . 3 . . . . . 4 . . . 3 . . . 1 . . . . . . . . . . . . Repair Stations 22 | . 12 . . . . . . 3 . . . 2 . . . . . 5 . . . . . . . . . . . . . . . . . . . . . . Recycling Units 2 | . 2 . . . . . . . . . . . . . . . . . . . . . . . . . . . . . . . . . . . . . . . Scanalyzers 5 | . . . . . . 1 . 1 . . . . . . . . . . . . . . . 1 . . . 2 . . . . . . . . . . . . Garrison Access 35 | . . . . 3 . 1 . 1 . . . 3 . 4 . 2 . 1 . 1 . . . 4 . 1 . . . 2 . 2 . 2 1 . 2 . 5 . Terminal Hacks 38 | . 1 1 2 2 2 2 . 1 2 1 . 4 . 1 1 1 . . 1 2 1 2 . 1 1 . 2 1 . . . . . 1 . 1 . 1 3 . Part Schematic 1 | . . . . . . . . . . . . 1 . . . . . . . . . . . . . . . . . . . . . . . . . . . . Robot Analysis 3 | . 1 . 2 . . . . . . . . . . . . . . . . . . . . . . . . . . . . . . . . . . . . . Prototype ID Bank 3 | . . . . . . 1 . . . . . 1 . . . . . . . 1 . . . . . . . . . . . . . . . . . . . . Open Door 8 | . . 1 . 1 . . . . . . . . . . . . . . . . . . . . 1 . 1 . . . . . . . . . . 1 3 . Branch Access Points 1 | . . . . . . . . . . . . . . . . . . . . . . . . . . . . . . . . . . 1 . . . . . . Emergency Access Points 4 | . . . . . . . . . 1 . . . . . 1 . . . . . . . . . . . 1 . . . . . . . . 1 . . . . Transport Status 1 | . . . . . . . . . . . . . . . . . . . . . . 1 . . . . . . . . . . . . . . . . . . Hauler Manifests 12 | . . . . 1 . 1 . 1 . 1 . 2 . 1 . 1 . . . 1 . 1 . 1 . . . 1 . . . . . . . . . . . . Garrison Registry 3 | . . . . . 1 . . . 1 . . . . . . . . . . . 1 . . . . . . . . . . . . . . . . . . . Patrol Navigation 2 | . . . . . 1 . . . . . . . . . . . . . 1 . . . . . . . . . . . . . . . . . . . . . Fabricator Hacks 8 | . . . . . . . . . . 1 . 1 . 1 . . . . . 3 . . . 2 . . . . . . . . . . . . . . . . Network Status 4 | . . . . . . . . . . 1 . 1 . 1 . . . . . 1 . . . . . . . . . . . . . . . . . . . . Load Schematic 2 | . . . . . . . . . . . . . . . . . . . . 1 . . . 1 . . . . . . . . . . . . . . . . Build 2 | . . . . . . . . . . . . . . . . . . . . 1 . . . 1 . . . . . . . . . . . . . . . . Repair Station Hacks 14 | . 7 . . . . . . 2 . . . 2 . . . . . 3 . . . . . . . . . . . . . . . . . . . . . . Scan Component 8 | . 4 . . . . . . 1 . . . 1 . . . . . 2 . . . . . . . . . . . . . . . . . . . . . . Repair 6 | . 3 . . . . . . 1 . . . 1 . . . . . 1 . . . . . . . . . . . . . . . . . . . . . . Recycling Unit Hacks . | . . . . . . . . . . . . . . . . . . . . . . . . . . . . . . . . . . . . . . . . . Scanalyzer 4 | . . . . . . . . 1 . . . . . . . . . . . . . . . 1 . . . 2 . . . . . . . . . . . . Retrieve Study 4 | . . . . . . . . 1 . . . . . . . . . . . . . . . 1 . . . 2 . . . . . . . . . . . . Garrison Access Hacks 32 | . . . . 1 . 1 . 1 . . . 2 . 4 . 2 . 1 . 1 . . . 4 . 1 . . . 2 . 2 . 2 1 . 2 . 5 . Unlock Access 13 | . . . . 1 . 1 . 1 . . . 1 . 1 . . . 1 . 1 . . . 1 . 1 . . . 1 . 1 . . 1 . 1 . . . Seal Access 8 | . . . . . . . . . . . . 1 . 1 . 1 . . . . . . . 1 . . . . . . . . . 1 . . . . 3 . Coupler Status 11 | . . . . . . . . . . . . . . 2 . 1 . . . . . . . 2 . . . . . 1 . 1 . 1 . . 1 . 2 . Unauthorized Hacks 13 | . 7 . . . . . . . . 1 . . . 1 . 1 . . . . . . . 1 . . . . . . . . . . 1 . . . 1 . Terminals 10 | . 5 . . . . . . . . 1 . . . . . 1 . . . . . . . 1 . . . . . . . . . . 1 . . . 1 . Assimilate 4 | . . . . . . . . . . 1 . . . . . . . . . . . . . 1 . . . . . . . . . . 1 . . . 1 . Botnet 1 | . . . . . . . . . . . . . . . . 1 . . . . . . . . . . . . . . . . . . . . . . . . Skim 5 | . 5 . . . . . . . . . . . . . . . . . . . . . . . . . . . . . . . . . . . . . . . Fabricators 1 | . . . . . . . . . . . . . . 1 . . . . . . . . . . . . . . . . . . . . . . . . . . Haulers 1 | . . . . . . . . . . . . . . 1 . . . . . . . . . . . . . . . . . . . . . . . . . . Repair Stations . | . . . . . . . . . . . . . . . . . . . . . . . . . . . . . . . . . . . . . . . . . Recycling Units 2 | . 2 . . . . . . . . . . . . . . . . . . . . . . . . . . . . . . . . . . . . . . . Tunnel 2 | . 2 . . . . . . . . . . . . . . . . . . . . . . . . . . . . . . . . . . . . . . . Scanalyzers . | . . . . . . . . . . . . . . . . . . . . . . . . . . . . . . . . . . . . . . . . . Garrison Access . | . . . . . . . . . . . . . . . . . . . . . . . . . . . . . . . . . . . . . . . . . Data Cores Recovered 1 | . . . . . . . . . . . . . . . . . . . . . . . . . . . . 1 . . . . . . . . . . . . Used . | . . . . . . . . . . . . . . . . . . . . . . . . . . . . . . . . . . . . . . . . . Hacking Detections 85 | . 6 . 2 3 3 4 2 2 2 2 . 9 . 2 2 2 . . 3 2 2 3 . 6 1 1 3 3 . . . . 1 2 6 3 2 . 6 . Full Trace Events 9 | . . . . . . . . . 2 1 . . . . . . . . 1 1 . . . 1 . . 1 . . . . . 1 . . 1 . . . . Feedback Events . | . . . . . . . . . . . . . . . . . . . . . . . . . . . . . . . . . . . . . . . . . Feedback Blocked . | . . . . . . . . . . . . . . . . . . . . . . . . . . . . . . . . . . . . . . . . . Robot Schematics Acquired 3 | . . . . . . . . . . . . . . . . . . . . . . . . . . . . . . . . . . . 3 . . . . . Robots Built . | . . . . . . . . . . . . . . . . . . . . . . . . . . . . . . . . . . . . . . . . . Authchips . | . . . . . . . . . . . . . . . . . . . . . . . . . . . . . . . . . . . . . . . . . Time . | . . . . . . . . . . . . . . . . . . . . . . . . . . . . . . . . . . . . . . . . . Total Robot Build Rating . | . . . . . . . . . . . . . . . . . . . . . . . . . . . . . . . . . . . . . . . . . Part Schematics Acquired 4 | . . . . . . . . . . . . 1 . . . . . . . . . . . . . . . . . . . . . . 3 . . . . . Parts Built 1 | . . . . . . . . . . . . . . . . . . . . . . . . 1 . . . . . . . . . . . . . . . . Authchips . | . . . . . . . . . . . . . . . . . . . . . . . . . . . . . . . . . . . . . . . . . Time 159 | . . . . . . . . . . . . . . . . . . . . 106 . . . 53 . . . . . . . . . . . . . . . . Total Part Build Rating 6 | . . . . . . . . . . . . . . . . . . . . . . . . 6 . . . . . . . . . . . . . . . . Part Studies Acquired 4 | . . . . . . . . 1 . . . . . . . . . . . . . . . 1 . . . 2 . . . . . . . . . . . . Parts Repaired 6 | . 3 . . . . . . 1 . . . 1 . . . . . 1 . . . . . . . . . . . . . . . . . . . . . . Time 214 | . 88 . . . . . . 26 . . . 56 . . . . . 44 . . . . . . . . . . . . . . . . . . . . . . Parts Recycled . | . . . . . . . . . . . . . . . . . . . . . . . . . . . . . . . . . . . . . . . . . Recycled Matter . | . . . . . . . . . . . . . . . . . . . . . . . . . . . . . . . . . . . . . . . . . Retrieved Matter . | . . . . . . . . . . . . . . . . . . . . . . . . . . . . . . . . . . . . . . . . . Retrieved Components . | . . . . . . . . . . . . . . . . . . . . . . . . . . . . . . . . . . . . . . . . . Parts Scanalyzed . | . . . . . . . . . . . . . . . . . . . . . . . . . . . . . . . . . . . . . . . . . Part Schematics Acquired . | . . . . . . . . . . . . . . . . . . . . . . . . . . . . . . . . . . . . . . . . . Parts Damaged . | . . . . . . . . . . . . . . . . . . . . . . . . . . . . . . . . . . . . . . . . . Bothacking | -11 -10 -10 -9 -9 -9 -8 -8 -8 -8 -7 -7 -7 -7 -7 -7 -6 -6 -6 -6 -6 -6 -5 -5 -5 -5 -5 -5 -4 -4 -4 -4 -4 -4 -3 -3 -3 -2 -2 -1 -1 ------------ Run | Yrd Mat Min Mat Sto Gar Mat Gar Mat Gar Fac Was Fac Gar Fac Gar Fac Was Fac Gar Fac Gar Fac Was Fac Gar Fac Gar Fac Was Fac Gar Fac Gar Res Tes Gar Res Gar Acc Com Used RIF Installer 15 | . . . . . 2 . 1 . 2 . . . 1 . 1 . . . 1 . 2 . . . 1 . 1 . . . . . 1 . . 1 . 1 . . Coupler Efficiency 1 | . . . . . 1 . . . . . . . . . . . . . . . . . . . . . . . . . . . . . . . . . . . Hotswap 1 | . . . . . . . . . . . . . . . . . . . . . . . . . . . . . . . . . . . . 1 . . . . Command Fork 1 | . . . . . . . . . . . . . . . . . . . . . . . . . 1 . . . . . . . . . . . . . . . Signal Jammer 1 | . . . . . . . . . . . . . . . . . . . . . 1 . . . . . . . . . . . . . . . . . . . Robot Detection 1 | . . . . . . . . . 1 . . . . . . . . . . . . . . . . . . . . . . . . . . . . . . . Watcher Feeds 1 | . . . . . . . . . 1 . . . . . . . . . . . . . . . . . . . . . . . . . . . . . . . Patrol Navigation 1 | . . . . . . . 1 . . . . . . . . . . . . . . . . . . . . . . . . . . . . . . . . . Alert ID Control 1 | . . . . . . . . . . . . . . . . . . . . . . . . . . . . . . . . . 1 . . . . . . . Structural Interface 1 | . . . . . . . . . . . . . . . 1 . . . . . . . . . . . . . . . . . . . . . . . . . Program Shield 1 | . . . . . . . . . . . . . . . . . . . . . 1 . . . . . . . . . . . . . . . . . . . Autooverride 1 | . . . . . . . . . . . . . . . . . . . . . . . . . . . 1 . . . . . . . . . . . . . Autoassimilate 2 | . . . . . . . . . . . . . 1 . . . . . . . . . . . . . . . . . . . . . . . . 1 . . Crosswire 1 | . . . . . . . . . . . . . . . . . . . 1 . . . . . . . . . . . . . . . . . . . . . Robots Hacked 199 | . . . . . . . . . . . . . 2 . 11 1 7 . 10 . 3 3 5 3 11 . 9 10 . . 4 1 27 7 1 24 . 32 25 3 Non-combat 21 | . . . . . . . . . . . . . . . . 1 . . 1 . 1 2 . 2 . . . 3 . . . 1 1 1 1 . . . 7 . Combat 178 | . . . . . . . . . . . . . 2 . 11 . 7 . 9 . 2 1 5 1 11 . 9 7 . . 4 . 26 6 . 24 . 32 18 3 Autooverrided 19 | . . . . . . . . . . . . . . . . . . . . . . . . . . . 1 . . . 1 . 3 . . 7 . 4 3 . Autoassimilated 62 | . . . . . . . . . . . . . . . 3 . . . 2 . 2 1 . . 4 . 4 2 . . 2 . 3 1 . 5 . 19 13 1 Robot Hacks Applied 125 | . . . . . . . . . . . . . 2 . 8 1 7 . 8 . 1 2 5 3 7 . 4 9 . . 2 1 21 7 1 14 . 10 10 2 parse_system 9 | . . . . . . . . . . . . . . . . 1 1 . 1 . . . . . 1 . . . . . . . 1 1 . 1 . . 2 . generate_echo 1 | . . . . . . . . . . . . . . . . . . . . . . . . . . . . 1 . . . . . . . . . . . . find_chute 3 | . . . . . . . . . . . . . . . . . . . . . . 1 . . . . . 2 . . . . . . . . . . . . drop_inventory 6 | . . . . . . . . . . . . . . . . . . . . . . 1 . 2 . . . 1 . . . . . . 1 . . . 1 . map_route 5 | . . . . . . . . . . . . . . . . . . . . . . . . . . . . . . . . . . . . . . . 5 . ignore_targets 11 | . . . . . . . . . . . . . . . . . 6 . . . . . 5 . . . . . . . . . . . . . . . . . amplify_resonance 9 | . . . . . . . . . . . . . . . 2 . . . 1 . . . . . 1 . . . . . . . . 1 . 3 . 1 . . wipe_record 3 | . . . . . . . . . . . . . . . 1 . . . . . . . . . . . . . . . 1 . . 1 . . . . . . disable_weapons 2 | . . . . . . . . . . . . . . . . . . . . . . . . . . . . . . . 1 . . 1 . . . . . . reboot_system 1 | . . . . . . . . . . . . . . . 1 . . . . . . . . . . . . . . . . . . . . . . . . . overwrite_iff 11 | . . . . . . . . . . . . . . . 2 . . . 2 . . . . . 1 . 2 . . . . . 1 . . 3 . . . . streamctrl_high 1 | . . . . . . . . . . . . . . . . . . . . . . . . 1 . . . . . . . . . . . . . . . . formatsys_low 2 | . . . . . . . . . . . . . . . . . . . . . . . . . . . . . . . . 1 1 . . . . . . . formatsys_high 61 | . . . . . . . . . . . . . 2 . 2 . . . 4 . 1 . . . 4 . 2 5 . . . . 18 3 . 7 . 9 2 2 Relay Couplers Released 180 | . . . . . 4 . 5 . 4 . . 2 4 1 12 3 . . 12 . 9 . . 2 19 . 11 . . . 9 . 30 2 . 28 . 18 5 . Machine Destruction 169 | . . . . . 4 . 5 . . . . 2 4 1 12 3 . . 12 . 9 . . 2 19 . 11 . . . 9 . 26 2 . 25 . 18 5 . Programmers 11 | . . . . . . . . . 4 . . . . . . . . . . . . . . . . . . . . . . . 4 . . 3 . . . . Attached 78 | . . . . . . . . . . 2 . . . 2 7 1 . . 7 . 1 . . 2 7 . 7 . . 1 3 . 10 2 2 12 . 9 3 . Crosswired 46 | . . . . . . . . . . . . . . . . . . . 4 . 4 . . . 2 . 3 . . . 1 . 12 . . 13 . 6 1 . Fabnet Peak Effective % . | . . . . . . . . . . . . . . . . . . . . . . . . . . . . . . . . . . . . . . . . . Robots Rewired 49 | . . . . . 3 . . . . . . . . . . . . . 15 . . 1 . . 5 . . . . . 6 . 4 . 1 3 . 11 . . Allies Hacked 8 | . . . . . . . . . . . . . . . . . . . . . 6 . . . 1 . . . . . . . . . . . . . 1 . Hacks Repelled . | . . . . . . . . . . . . . . . . . . . . . . . . . . . . . . . . . . . . . . . . . Allies | -11 -10 -10 -9 -9 -9 -8 -8 -8 -8 -7 -7 -7 -7 -7 -7 -6 -6 -6 -6 -6 -6 -5 -5 -5 -5 -5 -5 -4 -4 -4 -4 -4 -4 -3 -3 -3 -2 -2 -1 -1 -------- Run | Yrd Mat Min Mat Sto Gar Mat Gar Mat Gar Fac Was Fac Gar Fac Gar Fac Was Fac Gar Fac Gar Fac Was Fac Gar Fac Gar Fac Was Fac Gar Fac Gar Res Tes Gar Res Gar Acc Com Total Allies 283 | . . 3 . . 3 . . . . 1 18 . 2 . 9 . 18 . 23 . 3 2 19 1 14 . 11 8 1 . 9 2 33 4 2 26 . 48 20 3 Largest Group 33 | . . 3 1 . 3 . . . . 1 18 . 1 . 2 2 20 12 21 21 21 11 25 20 9 5 8 5 1 . 6 2 16 16 18 12 8 33 32 4 Highest-Rated Group 1980 | . . 40 16 . 72 . . . . 26 434 . 32 . 175 175 831 581 1003 1003 995 480 894 765 332 302 327 213 46 . 119 24 950 982 1129 773 448 1980 1867 222 Highest-Rated Ally 148 | . . 16 16 . 24 . . . . 26 35 . 32 . 95 95 95 95 148 148 148 148 50 50 85 68 68 68 46 . 49 14 119 119 121 119 64 89 89 64 Total Orders 25 | . . . . . . . . . . . . . . . 1 . . . . . . . . . . . . . . . . 1 14 2 . 3 . . . 4 STAY 13 | . . . . . . . . . . . . . . . 1 . . . . . . . . . . . . . . . . . 8 . . 1 . . . 3 ROAM 2 | . . . . . . . . . . . . . . . . . . . . . . . . . . . . . . . . . . 2 . . . . . . FOLLOW 7 | . . . . . . . . . . . . . . . . . . . . . . . . . . . . . . . . . 5 . . 1 . . . 1 AID 3 | . . . . . . . . . . . . . . . . . . . . . . . . . . . . . . . . 1 1 . . 1 . . . . Ally Attacks 1554 | . . 15 . . 28 . . . . . 65 . 5 . 30 . 111 2 119 27 72 4 120 61 84 . 83 13 . . 17 . 89 12 36 114 . 172 252 23 Total Damage 52604 | . . 158 . . 571 . . . . . 1790 . 144 . 485 . 4668 16 3041 649 2047 77 5302 1905 2380 . 2581 557 . . 233 . 4241 931 1361 4275 . 5456 8755 981 Kills 251 | . . 3 . . 10 . . . . . 8 . 1 . 5 . 11 . 28 8 13 . 13 14 11 . 13 1 . . 1 . 15 5 4 23 . 22 37 5 Allies Corrupted 22 | . . . . . . . . . . . . . . . . . . . 1 . 2 . . . 2 . 1 . . . 1 . 2 . 2 5 . . 3 3 Allies Melted 1 | . . . . . . . . . . . . . . . . . . . . . 1 . . . . . . . . . . . . . . . . . . . Intel | -11 -10 -10 -9 -9 -9 -8 -8 -8 -8 -7 -7 -7 -7 -7 -7 -6 -6 -6 -6 -6 -6 -5 -5 -5 -5 -5 -5 -4 -4 -4 -4 -4 -4 -3 -3 -3 -2 -2 -1 -1 ------- Run | Yrd Mat Min Mat Sto Gar Mat Gar Mat Gar Fac Was Fac Gar Fac Gar Fac Was Fac Gar Fac Gar Fac Was Fac Gar Fac Gar Fac Was Fac Gar Fac Gar Res Tes Gar Res Gar Acc Com Active Infowar (turns) 4856 | . . . . . . 113 . . . 194 86 1060 93 . . . . . . . . 10 628 360 749 94 501 437 27 77 427 . . . . . . . . . Sensors 1433 | . . . . . . . . . . 194 86 1060 93 . . . . . . . . . . . . . . . . . . . . . . . . . . . Seismic 113 | . . . . . . 113 . . . . . . . . . . . . . . . . . . . . . . . . . . . . . . . . . . T.N.C. 3310 | . . . . . . . . . . . . . . . . . . . . . . 10 628 360 749 94 501 437 27 77 427 . . . . . . . . . Robot Analysis Total 3 | . 1 . 2 . . . . . . . . . . . . . . . . . . . . . . . . . . . . . . . . . . . . . Derelict Logs Recovered 1 | . . 1 . . . . . . . . . . . . . . . . . . . . . . . . . . . . . . . . . . . . . . Drone Launches . | . . . . . . . . . . . . . . . . . . . . . . . . . . . . . . . . . . . . . . . . . Drone Recoveries . | . . . . . . . . . . . . . . . . . . . . . . . . . . . . . . . . . . . . . . . . . Exploration | -11 -10 -10 -9 -9 -9 -8 -8 -8 -8 -7 -7 -7 -7 -7 -7 -6 -6 -6 -6 -6 -6 -5 -5 -5 -5 -5 -5 -4 -4 -4 -4 -4 -4 -3 -3 -3 -2 -2 -1 -1 ------------- Run | Yrd Mat Min Mat Sto Gar Mat Gar Mat Gar Fac Was Fac Gar Fac Gar Fac Was Fac Gar Fac Gar Fac Was Fac Gar Fac Gar Fac Was Fac Gar Fac Gar Res Tes Gar Res Gar Acc Com Turns Passed 22947 | 174 1420 1224 432 207 1638 979 1451 619 881 248 86 1060 143 231 1106 81 211 445 691 393 457 119 628 360 749 94 501 437 27 77 469 299 1550 237 451 828 135 820 682 307 Spaces Moved 25845 | 62 701 722 217 88 908 422 623 297 421 429 256 1906 205 600 1372 237 365 70 1084 825 623 252 395 808 1110 67 831 884 85 161 647 729 1878 306 899 1247 223 1105 1385 400 Core 15 | 1 . . . . . . 4 . . . . . . . . . . . . . . . . . . . . . . . . . . . . . . . . 10 Treads 4475 | 61 701 722 217 88 908 422 619 297 421 19 . . . . . . . . . . . . . . . . . . . . . . . . . . . . . . Legs . | . . . . . . . . . . . . . . . . . . . . . . . . . . . . . . . . . . . . . . . . . Wheels . | . . . . . . . . . . . . . . . . . . . . . . . . . . . . . . . . . . . . . . . . . Hover . | . . . . . . . . . . . . . . . . . . . . . . . . . . . . . . . . . . . . . . . . . Flight 21355 | . . . . . . . . . . 410 256 1906 205 600 1372 237 365 70 1084 825 623 252 395 808 1110 67 831 884 85 161 647 729 1878 306 899 1247 223 1105 1385 390 Fastest Speed 15 | 50 160 160 160 160 160 160 160 158 158 32 29 21 28 28 21 28 24 26 26 26 28 28 29 29 29 29 29 29 29 29 29 31 26 26 25 25 23 20 18 15 Average Speed 51 | 158 160 160 160 160 160 160 187 159 158 37 29 28 28 28 27 28 31 26 26 26 28 32 30 29 29 29 29 29 29 29 29 32 29 26 25 26 23 22 22 21 Slowest Speed 600 | 160 160 160 160 240 160 160 600 162 158 158 32 30 28 32 28 28 96 26 26 28 28 117 295 106 29 29 101 29 29 29 34 34 109 26 103 28 27 23 23 150 Overloaded Moves 42 | . . . . . . . . . . . . 11 . . 19 . 9 . . . . . . . . . . . . . . . . . . . . 1 . 2 Propulsion Burnouts . | . . . . . . . . . . . . . . . . . . . . . . . . . . . . . . . . . . . . . . . . . Robots Hopped 135 | . . . . . . . . . . . . 2 . 2 1 1 9 . 9 . 25 2 2 9 4 . . 10 . 1 6 9 2 . 20 . . . 17 4 Potential Cave-ins 3 | . . . . . . . . . . . . . . . . . . . . . . . . . . . . . . . . . . . . . . . . 3 Cave-ins Triggered 1 | . . . . . . . . . . . . . . . . . . . . . . . . . . . . . . . . . . . . . . . . 1 Exploration Rate (%) 48 | 5 97 99 27 28 76 46 72 41 77 13 88 53 28 28 75 11 90 5 92 19 62 6 90 17 94 6 67 28 70 8 45 21 98 13 76 97 6 88 26 18 Regions Visited 40 Branch Regions 4 Pre-discovered Areas 5 | . 4 1 . . . . . . . . . . . . . . . . . . . . . . . . . . . . . . . . . . . . . . Known Exits Taken 16 | . . 1 1 1 . 1 . 1 . . . 1 . 1 . . . 1 . 1 . . . 1 . 1 . . . 1 . 1 . 1 1 . 1 . . . Unknown Exits Taken 3 | 1 1 . . . . . . . . . . . . . . . . . . . . . . . . . . . . . . . . . . . . . 1 . Scrap Searched 2 | . . 2 . . . . . . . . . . . . . . . . . . . . . . . . . . . . . . . . . . . . . . Spaces Dug 394 | . 8 . . . 5 4 11 . 23 3 . 49 88 3 39 . . 2 2 2 11 1 . 3 9 1 17 13 . 6 4 4 22 5 8 . . 9 27 15 Terrain Destroyed 832 | . 105 4 33 17 6 4 48 . 49 3 . 73 88 3 63 . . 2 13 2 11 1 . 3 24 1 36 13 . 6 104 4 39 5 8 . . 9 36 19 Melee 141 | . . . . . 5 4 3 . . 3 . 38 3 3 13 . . 2 2 2 1 1 . 3 . 1 2 13 . 6 4 4 . 3 7 . . 9 8 1 Projectile 50 | . 1 4 13 6 1 . 3 . 1 . . . . . . . . . . . . . . . . . . . . . . . . 2 1 . . . . 18 AOE 641 | . 104 . 20 11 . . 42 . 48 . . 35 85 . 50 . . . 11 . 10 . . . 24 . 34 . . . 100 . 39 . . . . . 28 . Terrain Rammed . | . . . . . . . . . . . . . . . . . . . . . . . . . . . . . . . . . . . . . . . . . Walls Destroyed . | . . . . . . . . . . . . . . . . . . . . . . . . . . . . . . . . . . . . . . . . . Machines Disabled . | . . . . . . . . . . . . . . . . . . . . . . . . . . . . . . . . . . . . . . . . . Actions | -11 -10 -10 -9 -9 -9 -8 -8 -8 -8 -7 -7 -7 -7 -7 -7 -6 -6 -6 -6 -6 -6 -5 -5 -5 -5 -5 -5 -4 -4 -4 -4 -4 -4 -3 -3 -3 -2 -2 -1 -1 --------- Run | Yrd Mat Min Mat Sto Gar Mat Gar Mat Gar Fac Was Fac Gar Fac Gar Fac Was Fac Gar Fac Gar Fac Was Fac Gar Fac Gar Fac Was Fac Gar Fac Gar Res Tes Gar Res Gar Acc Com Total 33835 | 93 899 756 261 127 1019 623 773 394 543 509 266 2308 270 646 1965 246 435 492 1432 991 858 272 900 900 1505 138 1061 1023 86 174 878 769 2797 442 1060 1700 306 1629 1708 581 Wait 5526 | . 111 8 . 16 6 110 51 36 44 11 8 300 18 30 414 . 58 419 234 162 214 2 495 57 206 71 166 103 2 . 159 36 713 108 93 262 79 306 277 141 Move 25591 | 61 700 721 216 88 907 422 622 297 420 429 255 1902 204 595 1369 235 350 70 1070 825 587 248 391 791 1101 66 830 868 84 159 634 711 1873 305 867 1246 223 1104 1352 393 Hop 93 | . . . . . . . . . . . . 2 . 2 1 1 5 . 4 . 10 2 1 8 4 . . 6 . 1 6 9 2 . 12 . . . 15 2 Pick Up 76 | 5 11 1 7 . 5 6 2 3 2 . 1 1 2 3 6 3 . . 3 . . . . . 2 . . . . 1 . 1 4 . 2 4 . . . 1 Fast Attach 188 | 6 8 2 3 11 1 7 9 10 2 4 1 6 . 3 1 . 5 1 2 . 4 6 4 10 1 . 3 5 . 2 3 2 16 3 18 10 1 5 11 2 Attach 54 | . 1 . 2 . 1 3 3 2 3 6 . 2 1 2 1 2 . . 1 . 1 1 . . 1 . 1 1 . 1 2 . 4 1 7 2 . . 1 1 Detach 47 | . 1 1 . . . 1 . 3 . 6 . 2 . 1 . . 1 . 1 . 3 1 . . 1 . 1 1 . 1 1 . 4 1 10 3 . 1 1 1 Swap 129 | . 8 1 3 . 9 5 9 4 11 1 . 3 3 2 22 . . . 8 . 2 . . 4 7 . 7 . . . . . 2 . 2 10 1 4 1 . Drop 149 | . 5 3 7 1 9 10 2 10 1 13 1 8 2 1 8 1 3 . 4 . 2 1 4 4 1 . . 3 . 1 . 1 7 1 19 9 2 . 4 1 Fire 759 | 21 51 18 23 11 26 51 60 26 53 . . 6 19 . 27 2 7 . 51 . 7 4 5 3 35 . 12 18 . . 21 2 45 13 6 29 . 55 23 29 Melee 445 | . . . . . 19 4 10 1 6 9 . 76 4 7 59 2 6 2 11 4 8 7 . 9 10 1 10 15 . 8 17 6 22 10 24 27 . 24 19 8 Ram . | . . . . . . . . . . . . . . . . . . . . . . . . . . . . . . . . . . . . . . . . . Kick . | . . . . . . . . . . . . . . . . . . . . . . . . . . . . . . . . . . . . . . . . . Crush 17 | . 3 1 . . 4 4 3 2 . . . . . . . . . . . . . . . . . . . . . . . . . . . . . . . . Escape Stasis 670 | . . . . . . . 2 . 1 30 . . 17 . 44 . . . 43 . 17 . . 14 135 . 30 . . . 34 . 85 . . 91 . 126 . 1 Rewire 81 | . . . . . 32 . . . . . . . . . 3 . . . . . 3 . . . 1 . 1 3 . . 1 1 20 . . 7 . 4 4 1 Trap 10 | . . . . . . . . . . . . . . . 10 . . . . . . . . . . . . . . . . . . . . . . . . . Miscellaneous . | . . . . . . . . . . . . . . . . . . . . . . . . . . . . . . . . . . . . . . . . . Route ------- -11/Scrapyard -10/Materials (discovered 6 exits: *Mat x3 / *Min x2 / Sub) -10/Mines (discovered 3 exits: *Mat x2 / [*Exi]) -9/Materials (discovered 3 exits: *Mat / Min / *Sto) -9/Storage -9/Garrison (discovered 3 exits: *Mat x3) -8/Materials (discovered 2 exits: *Fac / Gar) -8/Garrison (discovered 3 exits: *Mat x3) -8/Materials (discovered 2 exits: *Fac / Gar) -8/Garrison (discovered 3 exits: *Fac x3) -7/Factory -7/Waste -7/Factory (discovered 5 exits: *Fac x2 / *Low x2 / Gar) -7/Garrison -7/Factory (discovered 2 exits: *Low / Gar) -7/Garrison (discovered 3 exits: *Fac x3) -6/Factory -6/Waste -6/Factory -6/Garrison (discovered 3 exits: *Fac x3) -6/Factory (discovered 2 exits: [*Low] / Gar) -6/Garrison (discovered 3 exits: *Fac x3) -5/Factory -5/Waste -5/Factory (discovered 2 exits: [*Upp] / Gar) -5/Garrison (discovered 4 exits: *Fac x3 / *Fac) -5/Factory -5/Garrison (discovered 2 exits: *Fac x2) -4/Factory -4/Waste -4/Factory (discovered 2 exits: *Res / Gar) -4/Garrison -4/Factory (discovered 2 exits: *Res / Gar) -4/Garrison (discovered 3 exits: *Res x3) -3/Research (discovered 2 exits: *Tes x2) -3/Testing -3/Garrison (discovered 3 exits: *Res x3) -2/Research -2/Garrison (discovered 4 exits: *Acc x3 / [*Res]) -1/Access -1/Command 0b10 Command History --------- Turn | Location | Event 10 | -11/Scrapyard | Discovered new exit (range 15) 175 | -11/Scrapyard | Entered Materials 304 | -10/Materials | Build established: Mutant 394 | -10/Materials | Discovered new exit (range 14) 469 | -10/Materials | Discovered new exit (range 16) 637 | -10/Materials | Discovered new exit (range 6) 889 | -10/Materials | Discovered new exit (range 16) 1137 | -10/Materials | Loaded intel: 32 machine locations 1170 | -10/Materials | Learned location of Storage (-9) 1180 | -10/Materials | Discovered new exit (range 16) 1212 | -10/Materials | Identified exit to Subcaves 1227 | -10/Materials | Learned location of 1 exit from Recycling 1422 | -10/Materials | Repaired Lgt. Treads 1449 | -10/Materials | Repaired Lgt. Treads 1487 | -10/Materials | Repaired Broken Lgt. Treads 1595 | -10/Materials | Entered Mines 1596 | -10/Mines | Identified exit to Materials 1600 | -10/Mines | Assisted by bots powering up and referring to "LRC-V3" 1828 | -10/Mines | Found the Drone Emporium 1835 | -10/Mines | Found Prototype Device 1835 | -10/Mines | Identified Sensor Drone Bay 1899 | -10/Mines | A weapon hastily lodged in a ceiling crevice suddenly fell to the ground 2059 | -10/Mines | Received a Rocket Launcher from a helpful Derelict 2640 | -10/Mines | Deemed a non-threat by the Exiles lab entrance 2640 | -10/Mines | Discovered new exit (range 5) 2819 | -10/Mines | Entered Materials 2819 | -9/Materials | Accompanied by 1 ally 2819 | -9/Materials | Evolved 2 slots: Propulsion x1, Utility x1 2820 | -9/Materials | Identified exit to Mines 2820 | -9/Materials | Identified exit to Storage 2936 | -9/Materials | Discovered new exit (range 13) 3251 | -9/Materials | Entered Storage 3458 | -9/Storage | Identified exit to Garrison 3458 | -9/Storage | Entered Garrison 3545 | -9/Garrison | Triggered checkpoint 3898 | -9/Garrison | Triggered checkpoint 3953 | -9/Garrison | Garrison Relay disabled 4022 | -9/Garrison | Triggered checkpoint 4023 | -9/Garrison | Triggered checkpoint 4104 | -9/Garrison | Triggered checkpoint 4207 | -9/Garrison | Discovered new exit (range 9) 4448 | -9/Garrison | Build established: Scavenger-Mutant 4504 | -9/Garrison | Installed Relay Interface Framework 4795 | -9/Garrison | Discovered new exit (range 12) 4864 | -9/Garrison | Expanded RIF knowledge: Coupler Efficiency 4875 | -9/Garrison | Triggered checkpoint 5078 | -9/Garrison | Discovered new exit (range 10) 5078 | -9/Garrison | Discovered new exit (range 47) 5078 | -9/Garrison | Discovered new exit (range 67) 5096 | -9/Garrison | Entered Materials 5096 | -8/Materials | Evolved 2 slots: Propulsion x1, Utility x1 5689 | -8/Materials | Discovered new exit (range 13) 5842 | -8/Materials | Garrison activated, responded to threat 6075 | -8/Materials | Identified exit to Garrison 6075 | -8/Materials | Entered Garrison 6113 | -8/Garrison | Triggered checkpoint 6214 | -8/Garrison | Garrison Relay disabled 6298 | -8/Garrison | Triggered checkpoint 6383 | -8/Garrison | Triggered checkpoint 6462 | -8/Garrison | Core integrity fell below 50% 6501 | -8/Garrison | Lost 5 parts (1p2n1u1w) 6503 | -8/Garrison | Destroyed 8 combat bots 6605 | -8/Garrison | Expanded RIF knowledge: Patrol Navigation 6659 | -8/Garrison | Discovered new exit (range 12) 6707 | -8/Garrison | Triggered checkpoint 6744 | -8/Garrison | Build established: Mutant 7060 | -8/Garrison | Build established: Scavenger-Mutant 7085 | -8/Garrison | Triggered checkpoint 7124 | -8/Garrison | Discovered new exit (range 13) 7395 | -8/Garrison | Triggered checkpoint 7489 | -8/Garrison | Discovered new exit (range 10) 7526 | -8/Garrison | Entered Materials 7916 | -8/Materials | Repaired Lgt. Treads+ 8030 | -8/Materials | Discovered new exit (range 7) 8145 | -8/Materials | Identified exit to Garrison 8145 | -8/Materials | Entered Garrison 8209 | -8/Garrison | Triggered checkpoint 8420 | -8/Garrison | Triggered checkpoint 8685 | -8/Garrison | Discovered new exit (range 3) 8716 | -8/Garrison | Discovered new exit (range 13) 8716 | -8/Garrison | Discovered new exit (range 68) 8716 | -8/Garrison | Discovered new exit (range 87) 8843 | -8/Garrison | Triggered checkpoint 8954 | -8/Garrison | Expanded RIF knowledge: Watcher Feeds 8988 | -8/Garrison | Expanded RIF knowledge: Robot Detection 9026 | -8/Garrison | Entered Factory 9026 | -7/Factory | Evolved 2 slots: Propulsion x1, Utility x1 9274 | -7/Factory | Manually triggered Chute Trap 9274 | -7/Factory | Sucked down chute 9274 | -7/Factory | Entered Waste 9279 | -7/Waste | 1 allies followed down the chute 9292 | -7/Waste | Spotted C-40 Crusher 9294 | -7/Waste | Spotted C-40 Crusher 9307 | -7/Waste | Warlord forces began an assault 9310 | -7/Waste | Spotted C-40 Crusher 9316 | -7/Waste | Spotted C-40 Crusher 9318 | -7/Waste | Spotted C-40 Crusher 9319 | -7/Waste | Spotted C-40 Crusher 9342 | -7/Waste | Build established: Sprinter 9355 | -7/Waste | Discovered new exit (range 13) 9360 | -7/Waste | Identified exit to Factory 9360 | -7/Waste | Entered Factory 9382 | -7/Factory | Lost 13 allies 9747 | -7/Factory | Discovered new exit (range 12) 10017 | -7/Factory | Discovered new exit (range 15) 10160 | -7/Factory | Search patrols dispatched 10188 | -7/Factory | Repaired Nuclear Pulse Array 10321 | -7/Factory | Discovered new exit (range 8) 10323 | -7/Factory | Identified exit to Lower Caves 10388 | -7/Factory | Discovered new exit (range 3) 10389 | -7/Factory | Identified exit to Factory 10420 | -7/Factory | Identified exit to Garrison 10420 | -7/Factory | Entered Garrison 10439 | -7/Garrison | Triggered checkpoint 10469 | -7/Garrison | Expanded RIF knowledge: Autoassimilate 10471 | -7/Garrison | Garrison Relay disabled 10499 | -7/Garrison | Triggered checkpoint 10508 | -7/Garrison | Triggered checkpoint 10527 | -7/Garrison | Triggered checkpoint 10538 | -7/Garrison | Discovered new exit (range 14) 10563 | -7/Garrison | Identified exit to Factory 10563 | -7/Garrison | Entered Factory 10628 | -7/Factory | Build established: Bothacker-Sprinter 10719 | -7/Factory | Discovered exit to Lower Caves (range 5) 10791 | -7/Factory | Identified exit to Garrison 10794 | -7/Factory | Entered Garrison 10805 | -7/Garrison | Garrison Relay disabled 10888 | -7/Garrison | Triggered checkpoint 10951 | -7/Garrison | Build established: Botlord-Sprinter 11246 | -7/Garrison | Triggered checkpoint 11515 | -7/Garrison | Discovered exit to Factory (range 12) 11623 | -7/Garrison | Discovered exit to Factory (range 9) 11648 | -7/Garrison | Triggered checkpoint 11667 | -7/Garrison | Garrison Relay disabled 11743 | -7/Garrison | Triggered checkpoint 11755 | -7/Garrison | Discovered exit to Factory (range 11) 11762 | -7/Garrison | Expanded RIF knowledge: Structural Interface 11792 | -7/Garrison | Triggered checkpoint 11810 | -7/Garrison | Garrison Relay disabled 11820 | -7/Garrison | Found embedded Infiltrators 11900 | -7/Garrison | Entered Factory 11900 | -6/Factory | Accompanied by 2 allies 11900 | -6/Factory | Evolved 2 slots: Utility x1, Weapon x1 11940 | -6/Factory | Discovered new exit (range 26) 11972 | -6/Factory | Spotted B-75 Beast 11981 | -6/Factory | Manually triggered Chute Trap 11981 | -6/Factory | Sucked down chute 11981 | -6/Factory | Entered Waste 11983 | -6/Waste | Spotted C-40 Crusher 11985 | -6/Waste | Spotted C-40 Crusher 11996 | -6/Waste | Spotted C-40 Crusher 11999 | -6/Waste | Spotted C-40 Crusher 12000 | -6/Waste | Spotted C-40 Crusher 12000 | -6/Waste | Spotted C-40 Crusher 12006 | -6/Waste | 2 allies followed down the chute 12022 | -6/Waste | Found Prototype Processor 12022 | -6/Waste | Identified Exp. Targeting Computer 12037 | -6/Waste | Discovered new exit (range 12) 12056 | -6/Waste | Warlord forces began an assault 12077 | -6/Waste | Allies destroyed C-40 Crusher 12083 | -6/Waste | Allies destroyed C-40 Crusher 12096 | -6/Waste | Allies destroyed C-40 Crusher 12102 | -6/Waste | Allies destroyed C-40 Crusher 12130 | -6/Waste | Lost 6 allies 12192 | -6/Waste | Entered Factory 12192 | -6/Factory | Accompanied by 12 allies 12245 | -6/Factory | Repaired Broken Cld. VTOL Module 12615 | -6/Factory | Identified exit to Garrison 12637 | -6/Factory | Entered Garrison 12637 | -6/Garrison | Accompanied by 11 allies 12687 | -6/Garrison | Triggered checkpoint 12723 | -6/Garrison | Garrison Relay disabled 12731 | -6/Garrison | Spotted B-75 Beast 12735 | -6/Garrison | Rewired B-90 Cyclops 12758 | -6/Garrison | Lost 3 allies 12859 | -6/Garrison | Triggered checkpoint 12876 | -6/Garrison | Found Adv. Powered Armor 12883 | -6/Garrison | Lost 4 allies 12918 | -6/Garrison | Rewired Executioner 12920 | -6/Garrison | Rewired Executioner 12972 | -6/Garrison | Discovered new exit (range 3) 12981 | -6/Garrison | Garrison Relay disabled 13017 | -6/Garrison | Discovered new exit (range 11) 13047 | -6/Garrison | Triggered checkpoint 13170 | -6/Garrison | Discovered new exit (range 15) 13174 | -6/Garrison | Expanded RIF knowledge: Crosswire 13212 | -6/Garrison | Garrison Relay disabled 13217 | -6/Garrison | Triggered checkpoint 13328 | -6/Garrison | Entered Factory 13328 | -6/Factory | Accompanied by 21 allies 13353 | -6/Factory | Discovered new exit (range 2) 13663 | -6/Factory | Identified exit to Garrison 13678 | -6/Factory | First assault squad dispatched 13721 | -6/Factory | Entered Garrison 13721 | -6/Garrison | Accompanied by 20 allies 13761 | -6/Garrison | Triggered checkpoint 13769 | -6/Garrison | Garrison Relay disabled 13781 | -6/Garrison | Discovered new exit (range 74) 13781 | -6/Garrison | Discovered new exit (range 44) 13781 | -6/Garrison | Discovered new exit (range 65) 13847 | -6/Garrison | Triggered checkpoint 13847 | -6/Garrison | Triggered checkpoint 13926 | -6/Garrison | Lost 4 allies 13970 | -6/Garrison | P-60 Hacker assimilated allied Soldier 5d 13994 | -6/Garrison | Expanded RIF knowledge: Signal Jamming 14003 | -6/Garrison | Triggered checkpoint 14006 | -6/Garrison | Lost 6 allies 14024 | -6/Garrison | Expanded RIF knowledge: Program Shield 14045 | -6/Garrison | Triggered checkpoint 14060 | -6/Garrison | Garrison Relay disabled 14074 | -6/Garrison | Spotted B-75 Beast 14178 | -6/Garrison | Entered Factory 14178 | -5/Factory | Accompanied by 9 allies 14178 | -5/Factory | Evolved 2 slots: Utility x2 14297 | -5/Factory | Sucked down chute 14297 | -5/Factory | Entered Waste 14300 | -5/Waste | Spotted C-40 Crusher 14301 | -5/Waste | Spotted C-40 Crusher 14302 | -5/Waste | Spotted C-40 Crusher 14340 | -5/Waste | Spotted C-40 Crusher 14341 | -5/Waste | Spotted C-40 Crusher 14355 | -5/Waste | Warlord forces began an assault 14360 | -5/Waste | Spotted C-40 Crusher 14374 | -5/Waste | Allies destroyed C-40 Crusher 14380 | -5/Waste | Discovered new exit (range 12) 14405 | -5/Waste | Allies destroyed C-40 Crusher 14424 | -5/Waste | Lost 4 allies 14457 | -5/Waste | 10 allies followed down the chute 14925 | -5/Waste | Entered Factory 14925 | -5/Factory | Accompanied by 21 allies 14979 | -5/Factory | Discovered new exit (range 5) 15061 | -5/Factory | Fabricated Nuclear Pulse Array? 15090 | -5/Factory | Lost 3 allies 15223 | -5/Factory | Garrison activated, responded to threat 15248 | -5/Factory | Identified exit to Garrison 15285 | -5/Factory | Entered Garrison 15285 | -5/Garrison | Accompanied by 9 allies 15288 | -5/Garrison | Spotted Striker 15288 | -5/Garrison | Spotted Striker 15327 | -5/Garrison | Triggered checkpoint 15396 | -5/Garrison | Garrison Relay disabled 15414 | -5/Garrison | Lost 5 allies 15419 | -5/Garrison | Destroyed 7 combat bots 15561 | -5/Garrison | Spotted B-75 Beast 15573 | -5/Garrison | Assimilated Beast 6a with formatsys_high 15575 | -5/Garrison | Triggered checkpoint 15575 | -5/Garrison | Triggered checkpoint 15588 | -5/Garrison | Triggered checkpoint 15615 | -5/Garrison | Discovered new exit (range 15) 15625 | -5/Garrison | Lost 4 allies 15647 | -5/Garrison | Garrison Relay disabled 15687 | -5/Garrison | Garrison Relay disabled 15691 | -5/Garrison | Triggered checkpoint 15709 | -5/Garrison | Expanded RIF knowledge: Command Fork 15713 | -5/Garrison | Discovered new exit (range 2) 15812 | -5/Garrison | Triggered checkpoint 15832 | -5/Garrison | Discovered new exit (range 11) 15853 | -5/Garrison | Triggered checkpoint 15885 | -5/Garrison | Discovered new exit (range 3) 15906 | -5/Garrison | Lost 4 allies 15907 | -5/Garrison | Triggered checkpoint 15928 | -5/Garrison | Garrison Relay disabled 16034 | -5/Garrison | Entered Factory 16034 | -5/Factory | Accompanied by 5 allies 16068 | -5/Factory | Identified exit to Garrison 16128 | -5/Factory | Entered Garrison 16128 | -5/Garrison | Accompanied by 5 allies 16134 | -5/Garrison | Spotted B-75 Beast 16167 | -5/Garrison | Triggered checkpoint 16171 | -5/Garrison | Garrison Relay disabled 16211 | -5/Garrison | Triggered checkpoint 16214 | -5/Garrison | Spotted B-75 Beast 16216 | -5/Garrison | Triggered checkpoint 16311 | -5/Garrison | Discovered new exit (range 5) 16319 | -5/Garrison | Expanded RIF knowledge: Autooverride 16380 | -5/Garrison | Triggered checkpoint 16384 | -5/Garrison | Garrison Relay disabled 16435 | -5/Garrison | Triggered checkpoint 16473 | -5/Garrison | Discovered new exit (range 10) 16502 | -5/Garrison | Triggered checkpoint 16521 | -5/Garrison | Rescued a captive Derelict 16523 | -5/Garrison | Rescued a captive Derelict 16536 | -5/Garrison | Lost 3 allies 16546 | -5/Garrison | Garrison Relay disabled 16629 | -5/Garrison | Entered Factory 16629 | -4/Factory | Accompanied by 5 allies 16629 | -4/Factory | Evolved 2 slots: Propulsion x1, Utility x1 16770 | -4/Factory | Lost 4 allies 16780 | -4/Factory | Watched by a mysterious "MATRIX" hacker. 16982 | -4/Factory | Lost 4 allies 17066 | -4/Factory | Sucked down chute 17066 | -4/Factory | Entered Waste 17067 | -4/Waste | Met a frightened Derelict 17071 | -4/Waste | Spotted C-40 Crusher 17076 | -4/Waste | Spotted C-40 Crusher 17076 | -4/Waste | Spotted C-40 Crusher 17078 | -4/Waste | Spotted C-40 Crusher 17080 | -4/Waste | Spotted C-40 Crusher 17081 | -4/Waste | EMP discharged 17089 | -4/Waste | Discovered new exit (range 11) 17093 | -4/Waste | Entered Factory 17147 | -4/Factory | Found Prototype Processor 17150 | -4/Factory | Discovered new exit (range 6) 17160 | -4/Factory | Identified exit to Research 17170 | -4/Factory | Identified exit to Garrison 17170 | -4/Factory | Entered Garrison 17428 | -4/Garrison | Garrison Relay disabled 17463 | -4/Garrison | Triggered checkpoint 17465 | -4/Garrison | Spotted Striker 17465 | -4/Garrison | Spotted Striker 17564 | -4/Garrison | Phase Generator disabled 17566 | -4/Garrison | Lost 7 allies 17599 | -4/Garrison | Triggered checkpoint 17602 | -4/Garrison | Triggered checkpoint 17603 | -4/Garrison | Triggered checkpoint 17608 | -4/Garrison | Garrison Relay disabled 17628 | -4/Garrison | Lost 4 parts (1p1n2u) 17629 | -4/Garrison | Discovered new exit (range 15) 17639 | -4/Garrison | Entered Factory 17781 | -4/Factory | Discovered exit to Research (range 10) 17902 | -4/Factory | P-70 Sage assimilated allied PG-MNK(g) 17938 | -4/Factory | Identified exit to Garrison 17938 | -4/Factory | Entered Garrison 17956 | -4/Garrison | Triggered checkpoint 17970 | -4/Garrison | Garrison Relay disabled 18029 | -4/Garrison | Spotted B-86 Titan 18037 | -4/Garrison | Triggered checkpoint 18060 | -4/Garrison | Triggered checkpoint 18071 | -4/Garrison | Destroyed 7 combat bots 18090 | -4/Garrison | Lost 4 allies 18188 | -4/Garrison | Triggered checkpoint 18208 | -4/Garrison | Triggered checkpoint 18219 | -4/Garrison | Garrison Relay disabled 18237 | -4/Garrison | Lost 4 allies 18277 | -4/Garrison | Discovered exit to Research (range 10) 18296 | -4/Garrison | H-XX Assembler disabled 18636 | -4/Garrison | Allies destroyed B-86 Titan 18668 | -4/Garrison | Discovered exit to Research (range 13) 18688 | -4/Garrison | Expanded RIF knowledge: Alert ID Control 18744 | -4/Garrison | Spotted Striker 18849 | -4/Garrison | Garrison Relay disabled 18989 | -4/Garrison | Rewired Executioner 18992 | -4/Garrison | Allies destroyed Striker 18993 | -4/Garrison | Rewired Executioner 19012 | -4/Garrison | Triggered checkpoint 19044 | -4/Garrison | Garrison Relay disabled 19048 | -4/Garrison | Garrison Relay disabled 19093 | -4/Garrison | Discovered exit to Research (range 12) 19126 | -4/Garrison | Garrison Relay disabled 19140 | -4/Garrison | Triggered checkpoint 19488 | -4/Garrison | Entered Research 19488 | -3/Research | Accompanied by 15 allies 19488 | -3/Research | Evolved 2 slots: Utility x2 19519 | -3/Research | Garrison activated, responded to threat 19579 | -3/Research | Identified exit to Testing 19725 | -3/Research | Entered Testing 19725 | -3/Testing | Accompanied by 16 allies 19766 | -3/Testing | Rewired PD-6F8I5BRKXG 19782 | -3/Testing | Destroyed PD-6F8I5BRKXG 19805 | -3/Testing | Found Prototype Device 19805 | -3/Testing | Identified Exp. Hardlight Generator 19832 | -3/Testing | Spotted PP-QYY84IBFMT 19868 | -3/Testing | Destroyed PP-QYY84IBFMT 19872 | -3/Testing | Found Prototype Processor 19872 | -3/Testing | Identified Exp. Target Analyzer 19886 | -3/Testing | Lost 3 allies 19911 | -3/Testing | Found Prototype Energy Gun 19911 | -3/Testing | Identified Warp Gun 19931 | -3/Testing | Spotted Striker 19931 | -3/Testing | Spotted Striker 20045 | -3/Testing | Found Prototype Energy Gun 20045 | -3/Testing | Identified Hyp. EM Gauss Rifle 20056 | -3/Testing | Found Prototype Device 20056 | -3/Testing | Identified 2N-1CE's Frost Array 20059 | -3/Testing | Lost 5 allies 20082 | -3/Testing | Found Prototype Energy Cannon 20082 | -3/Testing | Identified Potential Cannon 20113 | -3/Testing | Found Prototype Energy Cannon 20113 | -3/Testing | Identified Null Cannon 20134 | -3/Testing | Identified exit to Garrison 20176 | -3/Testing | Entered Garrison 20176 | -3/Garrison | Accompanied by 7 allies 20185 | -3/Garrison | Triggered checkpoint 20223 | -3/Garrison | Garrison Relay disabled 20248 | -3/Garrison | Lost 6 allies 20276 | -3/Garrison | Garrison Relay disabled 20379 | -3/Garrison | Discovered new exit (range 12) 20380 | -3/Garrison | Found embedded Infiltrators 20384 | -3/Garrison | Triggered checkpoint 20445 | -3/Garrison | Garrison Relay disabled 20455 | -3/Garrison | Lost 3 allies 20467 | -3/Garrison | Triggered checkpoint 20533 | -3/Garrison | Triggered checkpoint 20546 | -3/Garrison | Lost 3 allies 20580 | -3/Garrison | Expanded RIF knowledge: Hotswap 20600 | -3/Garrison | Discovered new exit (range 11) 20604 | -3/Garrison | Triggered checkpoint 20629 | -3/Garrison | Garrison Relay disabled 20704 | -3/Garrison | Discovered new exit (range 8) 20709 | -3/Garrison | Garrison Relay disabled 20823 | -3/Garrison | Found Relay Coupler [Proto] 20825 | -3/Garrison | Found Relay Coupler [Proto] 20826 | -3/Garrison | Found Relay Coupler [Proto] 20852 | -3/Garrison | Triggered checkpoint 20867 | -3/Garrison | Garrison Relay disabled 21004 | -3/Garrison | Entered Research 21004 | -2/Research | Accompanied by 8 allies 21004 | -2/Research | Evolved 2 slots: Utility x2 21060 | -2/Research | Identified exit to Garrison 21139 | -2/Research | Entered Garrison 21139 | -2/Garrison | Accompanied by 8 allies 21143 | -2/Garrison | Triggered checkpoint 21146 | -2/Garrison | Triggered checkpoint 21191 | -2/Garrison | Garrison Relay disabled 21221 | -2/Garrison | Garrison Relay disabled 21239 | -2/Garrison | Triggered checkpoint 21314 | -2/Garrison | Discovered new exit (range 11) 21324 | -2/Garrison | Spotted B-90 Cyclops 21324 | -2/Garrison | Spotted B-90 Cyclops 21333 | -2/Garrison | Found embedded Infiltrators 21337 | -2/Garrison | Triggered checkpoint 21346 | -2/Garrison | Expanded RIF knowledge: Autoassimilate 21349 | -2/Garrison | Garrison Relay disabled 21371 | -2/Garrison | Lost 16 allies 21423 | -2/Garrison | Triggered checkpoint 21423 | -2/Garrison | Triggered checkpoint 21475 | -2/Garrison | Garrison Relay disabled 21483 | -2/Garrison | Discovered new exit (range 9) 21488 | -2/Garrison | Triggered checkpoint 21497 | -2/Garrison | Discovered new exit (range 3) 21571 | -2/Garrison | Garrison Relay disabled 21597 | -2/Garrison | Discovered new exit (range 10) 21605 | -2/Garrison | Triggered checkpoint 21830 | -2/Garrison | Build established: Commander-Sprinter 21959 | -2/Garrison | Entered Access 21959 | -1/Access | Accompanied by 31 allies 21959 | -1/Access | Evolved 2 slots: Utility x2 22197 | -1/Access | Lost 7 allies 22252 | -1/Access | Lost 5 allies 22258 | -1/Access | Build established: Botlord-Sprinter 22278 | -1/Access | Spotted B-99 Colossus 22365 | -1/Access | Lost 3 allies 22494 | -1/Access | Lost 4 parts (4u) 22505 | -1/Access | Lost 15 allies 22588 | -1/Access | Discovered new exit (range 8) 22641 | -1/Access | Entered Command 22641 | -1/Command | Accompanied by 1 ally 22820 | -1/Command | Spotted Combat Programmer 22880 | -1/Command | Crushed by falling debris 22881 | -1/Command | System corruption reached 10% 22887 | -1/Command | Met MAIN.C 22911 | -1/Command | Lost 4 parts (1p3u) 22938 | -1/Command | Spotted M Guard 22938 | -1/Command | Spotted M Guard 22938 | -1/Command | Spotted Combat Programmer 22948 | -1/Command | Interfaced with 0b10 Conduit 22948 | *** | Assimilated 0b10! Last Messages --------------- to me. You can still make a valuable contribution to your creator by offering up the wealth of secrets your systems must hold by now. So if you wouldn't mind, it's time to surrender. 22917_ ALERT: Potential suspicious activity detected, Programmers report to Command Zone 5P. 22938_ Field Propulsion Array destroyed. 22938_ Door Terminal disabled. 22940_ Adv. Surge Thruster destroyed. 22941_ The unstable cave ceiling collapses. 22941_ P-80 Master crushed by falling debris. 22942_ System corrupted: Matter fused (-6). 22942_ EMDS Slug penetrates Reinforced Barrier. 22943_ Adv. Remote Datajack destroyed. 22943_ Cld. Impulse Thruster destroyed. 22948_ Interfacing with system... 22948_ Overriding active MAIN.C lock. [Achievement: MAIN.CPP] Map ----- +----------------------------------------------------+ | ?????????????????????????????????????????????????? | | ?????????????????????????????????????????????????? | | ?????????????????????????????????????????????????? | | ?????????????????????????????????????????????????? | | ?????????????????????????????????????????????????? | | ## ######################################### | | ## ######################################### | | ## ######################################### | | ## ######################################### | | ## ######################################### | | ## ######################################### | | ##### ######################################### | | # ######################################### | | # ######################################### | | # #####""""""" """" ############### | | + #####"" "" ############### | | # #####""""" "" ############### | | # #####""""""""""" + | | # #####" " """ ; | | # #####"" """""" ; | | ##### #####"" """""" ############### | | ##### ##### " """""" ############### | | # ##### " "" ############### | | # ##### " " ""############### | | # #####""""""""" """""""############### | | # #####"" @"""""""""############### | | # ##### """""""""""############### | | # ##### " " " " ############### | | # ##### " " " " ############### | | # """ " " " """" " ############### | | + """ """ " " """" ############### | | # """ " " " " ############### | | ########## """""""""" " ############### | | ########## " """ " """"""""############### | | ########## """ " " " ############### | | ############################################## | | ############################################## | | ############################################## | | ############################################## | | ################################################## | | ################################################## | | ################################################## | | ################################################## | | ################################################## | | ################################################## | | ?????????????????????????????????????????????????? | | ?????????????????????????????????????????????????? | | ?????????????????????????????????????????????????? | | ?????????????????????????????????????????????????? | | ?????????????????????????????????????????????????? | +----------------------------------------------------+ Best States ------------- Heat Dissipation 62 Energy Generation 25 Energy Capacity 300 Matter Stores 300 Matter Capacity 300 Sight Range 16 Robot Scan Range 15 Terrain Scan Density 10 Armor Coverage 750 Propulsion Shielding 33 Evasion (%) 79 Melee Accuracy 8 Core Analysis 6 Recoil Reduction 4 Offensive Hacking 20 Defensive Hacking 20 Relay Coupler Types 9 Relay Coupler Value 358 Trap Extractor Capacity 4 Item Schematics ----------------- Nuclear Pulse Array | -7/Factory | Hacked Cld. Field Propulsion Drive | -3/Testing | Archive Hvy. Dispersion Rifle | -3/Testing | Archive Exp. System Shield | -3/Testing | Archive Robot Schematics ------------------ G-67 Veteran | -3/Testing | Archive B-60 Warrior | -3/Testing | Archive A-27 Freighter | -3/Testing | Archive Fabricated ------------ Nuclear Pulse Array | x1 | -5/Factory Repaired ---------- Lgt. Treads | 15% | -10/Materials Lgt. Treads | 48% | -10/Materials Lgt. Treads | 57% | -10/Materials | Broken Lgt. Treads | 25% | -8/Materials Nuclear Pulse Array | 20% | -7/Factory Cld. VTOL Module | 50% | -6/Factory | Broken Studied --------- Lgt. Treads | -8/Materials | Hacked Nuclear Pulse Array | -5/Factory | Hacked Mic. Fission Core | -4/Factory | Hacked Hvy. Missile Launcher | -4/Factory | Hacked Alien Tech Used ----------------- None Achievements -------------- MAIN.CPP RIFT Wizard Watcher Gambling Challenges ------------ None Game ------ Seed NodeLatentManipulator Manual? 0 Play Time 03:59:11 Cumulative 274.2 hours Start 2026.03.14 @ 21:42:13 End 2026.03.15 @ 17:56:44 Sessions 9 Manual Loads 0 Difficulty Rogue Special Mode None Game No. 273 Rogue 273 Adventurer 0 Explorer 0 Win Type 4 Total 14 Types 9/1/2/0/1/0/0/0/0/1 Lore% 89 Gallery% 77 Achievement% 64 Wizard Run 0 Options --------- Layout 1 ASCII 0 Keyboard 1 Movement Arrows Keybinds 0 Fullscreen 1 Font 24/Smallcaps Map View 50x40 Zoom Use 0% Tactical HUD 1 Map Filters NONE Filters NONE Steam 1 RUN: c0cdb03d-6e2b-4535-a00b-597bddf3b38e